Workbook

Sheet Zdroj
N1: Zaťaženie náprav | AD1: Rázvor náprav
A2: Poradové číslo | B2: Ťahač | C2: Náves | D2: Dĺžka | E2: Šírka | F2: Výška | G2: Znížená výška | H2: Celková hmotnosť | I2: Hmotnosť ťahača | J2: Hmotnosť návesu | K2: Hmotnosť nákladu | L2: Počet náprav | M2: Suma rázvorov | N2: 1 | O2: 2 | P2: 3 | Q2: 4 | R2: 5 | S2: 6 | T2: 7 | U2: 8 | V2: 9 | W2: 10 | X2: 11 | Y2: 12 | Z2: 13 | AA2: 14 | AB2: 15 | AC2: Súčet zaťažení náprav | AD2: 1 | AE2: 2 | AF2: 3 | AG2: 4 | AH2: 5 | AI2: 6 | AJ2: 7 | AK2: 8 | AL2: 9 | AM2: 10 | AN2: 11 | AO2: 12 | AP2: 13 | AQ2: 14 | AR2: 15 | AS2: Súčet rázvorov
A3: 1 | B3: Mercedes Benz | C3: Goldhofer | D3: 18 | E3: 2.75 | F3: 4.2 | H3: 83 | I3: 10.5 | J3: 17.5 | L3: 8 | M3: 15.64 | N3: 9.3 | O3: 10.85 | P3: 10.85 | Q3: 10.4 | R3: 10.4 | S3: 10.4 | T3: 10.4 | U3: 10.4 | AC3: =SUM(N3:AB3) -> 83 | AD3: 0 | AE3: 3.45 | AF3: 1.35 | AG3: 5.6 | AH3: 1.31 | AI3: 1.31 | AJ3: 1.31 | AK3: 1.31 | AS3: =SUM(AD3:AR3) -> 15.64
A4: 2 | B4: MERCEDES | C4: GOLDHOFER | D4: 22 | E4: 4 | F4: 4.5 | G4: 4.4 | H4: 99 | I4: 13.7 | J4: 27.1 | L4: 9 | M4: 21.26 | N4: 7.8 | O4: 11.4 | P4: 11.4 | Q4: 11.4 | R4: 11.4 | S4: 11.4 | T4: 11.4 | U4: 11.4 | V4: 11.4 | AC4: =SUM(N4:AB4) -> 99 | AD4: 0 | AE4: 2.6 | AF4: 1.36 | AG4: 1.36 | AH4: 10.5 | AI4: 1.36 | AJ4: 1.36 | AK4: 1.36 | AL4: 1.36 | AS4: =SUM(AD4:AR4) -> 21.26
A5: 3 | B5: T-815 8x8 | C5: P 50N | D5: 21.8 | E5: 3.6 | F5: 3.7 | H5: 92.4 | I5: 30.2 | J5: 16.2 | L5: 10 | M5: 15.27 | N5: 7.55 | O5: 7.55 | P5: 7.55 | Q5: 7.55 | R5: 10.36 | S5: 10.36 | T5: 10.36 | U5: 10.36 | V5: 10.36 | W5: 10.36 | AC5: 92.36 | AD5: 0 | AE5: 1.65 | AF5: 2.87 | AG5: 1.45 | AH5: 2.3 | AI5: 1.4 | AJ5: 1.4 | AK5: 1.4 | AL5: 1.4 | AM5: 1.4 | AS5: =SUM(AD5:AR5) -> 15.27
A6: 4 | B6: Mercedes | C6: Goldhofer | D6: 27 | E6: 4 | F6: 4.5 | H6: 100 | I6: 13.86 | J6: 35.9 | L6: 12 | M6: 24.62 | N6: 5 | O6: 7 | P6: 8 | Q6: 8 | R6: 9 | S6: 9 | T6: 9 | U6: 9 | V6: 9 | W6: 9 | X6: 9 | Y6: 9 | AC6: 100 | AD6: 0 | AE6: 2.55 | AF6: 1.35 | AG6: 1.35 | AH6: 3.7 | AI6: 1.36 | AJ6: 1.36 | AK6: 7.47 | AL6: 1.36 | AM6: 1.36 | AN6: 1.36 | AO6: 1.4 | AS6: 24.62
A7: 5 | B7: Liebherr | D7: 16.5 | E7: 3 | F7: 4 | H7: 96 | I7: 96 | J7: 0 | L7: 8 | M7: 12.4 | N7: 12 | O7: 12 | P7: 12 | Q7: 12 | R7: 12 | S7: 12 | T7: 12 | U7: 12 | AC7: 96 | AD7: 0 | AE7: 1.6 | AF7: 2.8 | AG7: 1.6 | AH7: 1.6 | AI7: 1.6 | AJ7: 1.6 | AK7: 1.6 | AS7: 12.4
A8: 6 | B8: Man | C8: Faymonville | D8: 23 | E8: 5 | F8: 4 | G8: 4 | H8: 115 | I8: 13 | J8: 27 | L8: 12 | M8: 24.59 | N8: 5 | O8: 7 | P8: 8 | Q8: 8 | R8: 9 | S8: 9 | T8: 9 | U8: 9 | V8: 9 | W8: 9 | X8: 9 | Y8: 9 | AC8: 100 | AD8: 0 | AE8: 2.55 | AF8: 1.35 | AG8: 3.7 | AH8: 1.36 | AI8: 1.36 | AJ8: 7.47 | AK8: 1.36 | AL8: 1.36 | AM8: 1.36 | AN8: 1.36 | AO8: 1.36 | AS8: 24.59
A9: 7 | B9: MAN TGX | C9: Goldhofer | D9: 22 | E9: 3.5 | F9: 4.2 | H9: 74.74 | I9: 11.79 | J9: 26.95 | L9: 12 | M9: 20.33 | N9: 7.5 | O9: 7.5 | P9: 10 | Q9: 10 | R9: 10 | S9: 10 | T9: 10 | U9: 10 | V9: 10 | W9: 10 | X9: 10 | Y9: 10 | AC9: 115 | AD9: 0 | AE9: 2.6 | AF9: 1.45 | AG9: 1.41 | AH9: 5 | AI9: 1.41 | AJ9: 1.41 | AK9: 1.41 | AL9: 1.41 | AM9: 1.41 | AN9: 1.41 | AO9: 1.41 | AS9: 20.33
A10: 8 | B10: MAN TGX | C10: Goldhofer | D10: 22 | E10: 3.5 | F10: 4.2 | H10: 74.74 | I10: 10 | J10: 26.95 | L10: 10 | M10: 21.03 | N10: 8 | O10: 7.5 | P10: 7.5 | Q10: 7 | R10: 7.5 | S10: 7 | T10: 7.5 | U10: 8 | V10: 7 | W10: 7.74 | AC10: 74.74 | AD10: 0 | AE10: 2.63 | AF10: 1.46 | AG10: 1.46 | AH10: 2.24 | AI10: 1.36 | AJ10: 7.8 | AK10: 1.36 | AL10: 1.36 | AM10: 1.36 | AS10: 21.03
A11: 9 | B11: MERCEDES | C11: GOLDHOFER | D11: 42 | E11: 3.5 | F11: 4.5 | G11: 4.4 | H11: 72 | I11: 12.5 | J11: 22.5 | L11: 9 | M11: 38.75 | N11: 8 | O11: 8 | P11: 8 | Q11: 8 | R11: 8 | S11: 8 | T11: 8 | U11: 8 | V11: 8 | AC11: 72 | AD11: 0 | AE11: 2.59 | AF11: 1.36 | AG11: 1.36 | AH11: 28 | AI11: 1.36 | AJ11: 1.36 | AK11: 1.36 | AL11: 1.36 | AS11: 38.75
A12: 10 | B12: Iveco | C12: Faymonville | D12: 26 | E12: 3.8 | F12: 4.7 | H12: 60 | I12: 12.88 | J12: 15.12 | L12: 7 | M12: 18.98 | N12: 6 | O12: 8 | P12: 9 | Q12: 10 | R12: 9 | S12: 9 | T12: 9 | AC12: 60 | AD12: 0 | AE12: 2.4 | AF12: 1.33 | AG12: 11.2 | AH12: 1.36 | AI12: 1.36 | AS12: 17.65
A13: 11 | B13: Volvo | C13: Nooteboom | D13: 22 | E13: 7.1 | F13: 4 | H13: 82 | I13: 11.17 | J13: 23.7 | L13: 9 | M13: 19.35 | N13: 7 | O13: 8 | P13: 9.5 | Q13: 9.5 | R13: 9.6 | S13: 9.6 | T13: 9 | U13: 9.6 | V13: 9.6 | AC13: 81.4 | AD13: 0 | AE13: 2.28 | AF13: 1.32 | AG13: 1.36 | AH13: 7.14 | AI13: 1.81 | AJ13: 1.81 | AK13: 1.81 | AL13: 1.81 | AS13: 19.34
A14: 12 | B14: Volvo | C14: Nicolas | D14: 22 | E14: 3.5 | F14: 4.8 | H14: 99 | I14: 10.5 | J14: 22 | L14: 11 | M14: 19.12 | N14: 5 | O14: 8 | P14: 10 | Q14: 9.5 | R14: 9.5 | S14: 9.5 | T14: 9.5 | U14: 9.5 | V14: 9.5 | W14: 9.5 | X14: 9.5 | AC14: 99 | AD14: 0 | AE14: 3.4 | AF14: 1.37 | AG14: 3.5 | AH14: 1.55 | AI14: 1.55 | AJ14: 1.55 | AK14: 1.55 | AL14: 1.55 | AM14: 1.55 | AN14: 1.55 | AS14: 19.12
A15: 13 | B15: Mercedes | C15: Goldhofer | D15: 24 | E15: 4.25 | F15: 4.4 | H15: 98 | I15: 12.15 | J15: 26.75 | L15: 14 | M15: 21.85 | N15: 5 | O15: 7 | P15: 8 | Q15: 6 | R15: 7 | S15: 7 | T15: 7 | U15: 7 | V15: 7 | W15: 7 | X15: 7 | Y15: 7 | Z15: 5 | AA15: 7 | AC15: 94 | AD15: 0 | AE15: 2.55 | AF15: 1.35 | AG15: 1.35 | AH15: 3.1 | AI15: 1.5 | AJ15: 1.5 | AK15: 1.5 | AL15: 1.5 | AM15: 1.5 | AN15: 1.5 | AO15: 1.5 | AP15: 1.5 | AQ15: 1.5 | AS15: 21.85
A16: 14 | B16: MAN TGA | C16: GoldhoferSTZ-L5-60/80 | D16: 20 | E16: 4.3 | F16: 4.2 | H16: 73.16 | I16: 9.4 | J16: 16.76 | L16: 8 | M16: 14.94 | N16: 6.65 | O16: 9.5 | P16: 9.5 | Q16: 9.5 | R16: 9.5 | S16: 9.5 | T16: 9.5 | U16: 9.5 | AC16: 73.15 | AD16: 0 | AE16: 3.6 | AF16: 1.4 | AG16: 4.5 | AH16: 1.36 | AI16: 1.36 | AJ16: 1.36 | AK16: 1.36 | AS16: 14.94
A17: 15 | B17: DAF | C17: Broshuis | D17: 20.1 | E17: 2.55 | F17: 4 | G17: 4 | H17: 77 | I17: 10.93 | J17: 19.15 | L17: 7 | M17: 17.04 | N17: 8 | O17: 11.5 | P17: 11.5 | Q17: 11.5 | R17: 11.5 | S17: 11.5 | T17: 11.5 | AC17: 77 | AD17: 0 | AE17: 3.9 | AF17: 1.4 | AG17: 6.1 | AH17: 1.85 | AI17: 1.85 | AJ17: 1.94 | AS17: 17.04

Sheet Prepočet (hidden)
D1: 15
B2: id | C2: 15 | E2: 1 | F2: 2 | G2: 3 | H2: 4 | I2: 5 | J2: 6 | K2: 7 | L2: 8 | M2: 9 | N2: 10 | O2: 11 | P2: 12 | Q2: 13 | R2: 14 | S2: 15 | T2: 16 | U2: 17 | V2: 18 | W2: 19 | X2: 20 | Y2: 21 | Z2: 22 | AA2: 23 | AB2: 24 | AC2: 25 | AD2: 26 | AE2: 27 | AF2: 28 | AG2: 29 | AH2: 30
B3: axle | C3: axle load | D3: wheelbase [mm] | E3: 1np | G3: 2np | I3: 3np | K3: 4np | M3: 5np | O3: 6np | Q3: 7np | S3: 8np | U3: 9np | W3: 10np | Y3: 11np | AA3: 12np | AC3: 13np | AE3: 14np | AG3: 15np
B4: 1 | C4: =TRANSPOSE(E89:S89) -> 8 | D4: 0 | E4: =IF(C4="","",C4) -> 8 | F4: 0
B5: 2 | C5: 11.5 | D5: =TRANSPOSE(F90:S90) -> 3.9 | E5: =IF(C5="","",C5) -> 11.5 | F5: 0 | G5: =IF($C5="","",SUM($C4:$C5)) -> 19.5 | H5: =IF($D5="","",$D5) -> 3.9
B6: 3 | C6: 11.5 | D6: 1.4 | E6: 11.5 | F6: 0 | G6: =IF($C6="","",SUM($C5:$C6)) -> 23 | H6: =IF($D6="","",$D6) -> 1.4 | I6: =IF($C6="","",SUM($C4:$C6)) -> 31 | J6: =IF($D6="","",SUM($D5:$D6)) -> 5.3
B7: 4 | C7: 11.5 | D7: 6.1 | E7: 11.5 | F7: 0 | G7: 23 | H7: 6.1 | I7: =IF($C7="","",SUM($C5:$C7)) -> 34.5 | J7: =IF($D7="","",SUM($D6:$D7)) -> 7.5 | K7: =IF($C7="","",SUM($C4:$C7)) -> 42.5 | L7: =IF($D7="","",SUM($D5:$D7)) -> 11.4
B8: 5 | C8: 11.5 | D8: 1.85 | E8: 11.5 | F8: 0 | G8: 23 | H8: 1.85 | I8: 34.5 | J8: 7.95 | K8: =IF($C8="","",SUM($C5:$C8)) -> 46 | L8: =IF($D8="","",SUM($D6:$D8)) -> 9.35 | M8: =IF($C8="","",SUM($C4:$C8)) -> 54 | N8: =IF($D8="","",SUM($D5:$D8)) -> 13.25
B9: 6 | C9: 11.5 | D9: 1.85 | E9: 11.5 | F9: 0 | G9: 23 | H9: 1.85 | I9: 34.5 | J9: 3.7 | K9: 46 | L9: 9.8 | M9: =IF($C9="","",SUM($C5:$C9)) -> 57.5 | N9: =IF($D9="","",SUM($D6:$D9)) -> 11.2 | O9: =IF($C9="","",SUM($C4:$C9)) -> 65.5 | P9: =IF($D9="","",SUM($D5:$D9)) -> 15.1
B10: 7 | C10: 11.5 | D10: 1.94 | E10: 11.5 | F10: 0 | G10: 23 | H10: 1.94 | I10: 34.5 | J10: 3.79 | K10: 46 | L10: 5.64 | M10: 57.5 | N10: 11.74 | O10: =IF($C10="","",SUM($C5:$C10)) -> 69 | P10: =IF($D10="","",SUM($D6:$D10)) -> 13.14 | Q10: =IF($C10="","",SUM($C4:$C10)) -> 77 | R10: =IF($D10="","",SUM($D5:$D10)) -> 17.04
B11: 8 | F11: 0 | Q11: =IF($C11="","",SUM($C5:$C11)) ->  | R11: =IF($D11="","",SUM($D6:$D11)) ->  | S11: =IF($C11="","",SUM($C4:$C11)) ->  | T11: =IF($D11="","",SUM($D5:$D11)) -> 
B12: 9 | F12: 0 | S12: =IF($C12="","",SUM($C5:$C12)) ->  | T12: =IF($D12="","",SUM($D6:$D12)) ->  | U12: =IF($C12="","",SUM($C4:$C12)) ->  | V12: =IF($D12="","",SUM($D5:$D12)) -> 
B13: 10 | F13: 0 | U13: =IF($C13="","",SUM($C5:$C13)) ->  | V13: =IF($D13="","",SUM($D6:$D13)) ->  | W13: =IF($C13="","",SUM($C4:$C13)) ->  | X13: =IF($D13="","",SUM($D5:$D13)) -> 
B14: 11 | F14: 0 | W14: =IF($C14="","",SUM($C5:$C14)) ->  | X14: =IF($D14="","",SUM($D6:$D14)) ->  | Y14: =IF($C14="","",SUM($C4:$C14)) ->  | Z14: =IF($D14="","",SUM($D5:$D14)) -> 
B15: 12 | F15: 0 | Y15: =IF($C15="","",SUM($C5:$C15)) ->  | Z15: =IF($D15="","",SUM($D6:$D15)) ->  | AA15: =IF($C15="","",SUM($C4:$C15)) ->  | AB15: =IF($D15="","",SUM($D5:$D15)) -> 
B16: 13 | F16: 0 | AA16: =IF($C16="","",SUM($C5:$C16)) ->  | AB16: =IF($D16="","",SUM($D6:$D16)) ->  | AC16: =IF($C16="","",SUM($C4:$C16)) ->  | AD16: =IF($D16="","",SUM($D5:$D16)) -> 
B17: 14 | F17: 0 | AC17: =IF($C17="","",SUM($C5:$C17)) ->  | AD17: =IF($D17="","",SUM($D6:$D17)) ->  | AE17: =IF($C17="","",SUM($C4:$C17)) ->  | AF17: =IF($D17="","",SUM($D5:$D17)) -> 
B18: 15 | F18: 0 | AE18: =IF($C18="","",SUM($C5:$C18)) ->  | AF18: =IF($D18="","",SUM($D6:$D18)) ->  | AG18: =IF($C18="","",SUM($C4:$C18)) ->  | AH18: =IF($D18="","",SUM($D5:$D18)) -> 
B19: Suma | C19: =SUM(C4:C18) -> 77 | D19: =SUM(D4:D18) -> 17.04
B21: min | C21: =MIN(C4:C18) -> 8 | D21: =MIN(D4:D18) -> 0 | E21: 8 | F21: 0 | G21: 19.5 | H21: 1.4 | I21: 31 | J21: 3.7 | K21: 42.5 | L21: 5.64 | M21: 54 | N21: 11.2 | O21: 65.5 | P21: 13.14 | Q21: 77 | R21: 17.04 | S21: 0 | T21: 0 | U21: 0 | V21: 0 | W21: 0 | X21: 0 | Y21: 0 | Z21: 0 | AA21: 0 | AB21: 0 | AC21: 0 | AD21: 0 | AE21: 0 | AF21: 0 | AG21: 0 | AH21: 0
B22: max | C22: =MAX(C4:C18) -> 11.5 | D22: =MAX(D4:D18) -> 6.1 | E22: 11.5 | F22: 0 | G22: 23 | H22: 6.1 | I22: 34.5 | J22: 7.95 | K22: 46 | L22: 11.4 | M22: 57.5 | N22: 13.25 | O22: 69 | P22: 15.1 | Q22: 77 | R22: 17.04 | S22: 0 | T22: 0 | U22: 0 | V22: 0 | W22: 0 | X22: 0 | Y22: 0 | Z22: 0 | AA22: 0 | AB22: 0 | AC22: 0 | AD22: 0 | AE22: 0 | AF22: 0 | AG22: 0 | AH22: 0
E26: AXLE LOAD
F27: 15 | G27: 14 | H27: 13 | I27: 12 | J27: 11 | K27: 10 | L27: 9 | M27: 8 | N27: 7 | O27: 6 | P27: 5 | Q27: 4 | R27: 3 | S27: 2
E28: 1 | F28: 2 | G28: 3 | H28: 4 | I28: 5 | J28: 6 | K28: 7 | L28: 8 | M28: 9 | N28: 10 | O28: 11 | P28: 12 | Q28: 13 | R28: 14 | S28: 15
B29: 1 | E29: =E4 -> 8 | T29: 1
B30: 2 | E30: 11.5 | F30: =IF($E30="","",SUM($E29:$E30)) -> 19.5 | T30: 2
B31: 3 | E31: 11.5 | F31: 23 | G31: =IF($E31="","",SUM($E29:$E31)) -> 31 | T31: 3
B32: 4 | E32: 11.5 | F32: 23 | G32: 34.5 | H32: =IF($E32="","",SUM($E29:$E32)) -> 42.5 | T32: 4
B33: 5 | E33: 11.5 | F33: 23 | G33: 34.5 | H33: 46 | I33: =IF($E33="","",SUM($E29:$E33)) -> 54 | T33: 5
B34: 6 | E34: 11.5 | F34: 23 | G34: 34.5 | H34: 46 | I34: 57.5 | J34: =IF($E34="","",SUM($E29:$E34)) -> 65.5 | T34: 6
B35: 7 | E35: 11.5 | F35: 23 | G35: 34.5 | H35: 46 | I35: 57.5 | J35: 69 | K35: =IF($E35="","",SUM($E29:$E35)) -> 77 | T35: 7
B36: 8 | L36: =IF($E36="","",SUM($E29:$E36)) ->  | T36: 8
B37: 9 | M37: =IF($E37="","",SUM($E29:$E37)) ->  | T37: 9
B38: 10 | N38: =IF($E38="","",SUM($E29:$E38)) ->  | T38: 10
B39: 11 | O39: =IF($E39="","",SUM($E29:$E39)) ->  | T39: 11
B40: 12 | O40: =IF($E40="","",SUM($E30:$E40)) ->  | P40: =IF($E40="","",SUM($E29:$E40)) ->  | T40: 12
B41: 13 | O41: =IF($E41="","",SUM($E31:$E41)) ->  | P41: =IF($E41="","",SUM($E30:$E41)) ->  | Q41: =IF($E41="","",SUM($E29:$E41)) ->  | T41: 13
B42: 14 | O42: =IF($E42="","",SUM($E32:$E42)) ->  | P42: =IF($E42="","",SUM($E31:$E42)) ->  | Q42: =IF($E42="","",SUM($E30:$E42)) ->  | R42: =IF($E42="","",SUM($E29:$E42)) ->  | T42: 14
B43: 15 | O43: =IF($E43="","",SUM($E33:$E43)) ->  | P43: =IF($E43="","",SUM($E32:$E43)) ->  | Q43: =IF($E43="","",SUM($E31:$E43)) ->  | R43: =IF($E43="","",SUM($E30:$E43)) ->  | S43: =IF($E43="","",SUM($E29:$E43)) ->  | T43: 15
C44: MAX | E44: =MAX(E29:E43) -> 11.5 | F44: =MAX(F29:F43) -> 23 | G44: 34.5 | H44: 46 | I44: 57.5 | J44: 69 | K44: 77 | L44: 0 | M44: 0 | N44: 0 | O44: 0 | P44: 0 | Q44: 0 | R44: 0 | S44: 0
F45: =IF(F30="","",VLOOKUP(F44,F$29:$T$43,F27,FALSE)) -> 3 | G45: =IF(G31="","",VLOOKUP(G44,G$29:$T$43,G27,FALSE)) -> 4 | H45: =IF(H32="","",VLOOKUP(H44,H$29:$T$43,H27,FALSE)) -> 5 | I45: =IF(I33="","",VLOOKUP(I44,I$29:$T$43,I27,FALSE)) -> 6 | J45: =IF(J34="","",VLOOKUP(J44,J$29:$T$43,J27,FALSE)) -> 7 | K45: =IF(K35="","",VLOOKUP(K44,K$29:$T$43,K27,FALSE)) -> 7 | L45: =IF(L36="","",VLOOKUP(L44,L$29:$T$43,L27,FALSE)) ->  | M45: =IF(M37="","",VLOOKUP(M44,M$29:$T$43,M27,FALSE)) ->  | N45: =IF(N38="","",VLOOKUP(N44,N$29:$T$43,N27,FALSE)) ->  | O45: =IF(O39="","",VLOOKUP(O44,O$29:$T$43,O27,FALSE)) ->  | P45: =IF(P40="","",VLOOKUP(P44,P$29:$T$43,P27,FALSE)) ->  | Q45: =IF(Q41="","",VLOOKUP(Q44,Q$29:$T$43,Q27,FALSE)) ->  | R45: =IF(R42="","",VLOOKUP(R44,R$29:$T$43,R27,FALSE)) ->  | S45: =IF(S43="","",VLOOKUP(S44,S$29:$T$43,S27,FALSE)) ->  | AB45: t/m | AD45: t/m | AJ45: m | AL45: m | AR45: x | AT45: x
E46: AXLE WHEELBASE | AB46: X | AC46: M | AD46: X | AE46: M | AJ46: X | AK46: M | AL46: X | AM46: M | AR46: X | AS46: M | AT46: X | AU46: M
F47: 15 | G47: 14 | H47: 13 | I47: 12 | J47: 11 | K47: 10 | L47: 9 | M47: 8 | N47: 7 | O47: 6 | P47: 5 | Q47: 4 | R47: 3 | S47: 2 | Y47: 1 | Z47: =TRANSPOSE(E85:S85) -> 0 | AA47: 1 | AB47: =E64 -> 0 | AC47: =E44 -> 11.5 | AD47: =AB47 -> 0 | AE47: =AC47 -> 11.5 | AG47: 1 | AH47: =TRANSPOSE(E45:S45) -> 0 | AI47: 1 | AJ47: =E64 -> 0 | AK47: =E44 -> 11.5 | AL47: =AJ47 -> 0 | AM47: =AK47 -> 11.5 | AO47: 1 | AP47: =TRANSPOSE(E65:S65) -> 0 | AQ47: 1 | AR47: =E64 -> 0 | AS47: =E44 -> 11.5 | AT47: =AR47 -> 0 | AU47: =AS47 -> 11.5
E48: 1 | F48: 2 | G48: 3 | H48: 4 | I48: 5 | J48: 6 | K48: 7 | L48: 8 | M48: 9 | N48: 10 | O48: 11 | P48: 12 | Q48: 13 | R48: 14 | S48: 15 | Y48: 2 | Z48: 3 | AA48: 2 | AB48: =IF(Z48="","",INDEX($E$49:$S$63,Z48,AA48)) -> 1.4 | AC48: =IF(Z48="","",INDEX($E$29:$S$43,Z48,AA48)) -> 23 | AD48: =AB48 -> 1.4 | AE48: =AC47 -> 11.5 | AG48: 2 | AH48: 3 | AI48: 2 | AJ48: =IF(AH48="","",INDEX($E$49:$S$63,AH48,AI48)) -> 1.4 | AK48: =IF(AH48="","",INDEX($E$29:$S$43,AH48,AI48)) -> 23 | AL48: =AJ48 -> 1.4 | AM48: =AK47 -> 11.5 | AO48: 2 | AP48: 3 | AQ48: 2 | AR48: =IF(AP48="","",INDEX($E$49:$S$63,AP48,AQ48)) -> 1.4 | AS48: =IF(AP48="","",INDEX($E$29:$S$43,AP48,AQ48)) -> 23 | AT48: =AR48 -> 1.4 | AU48: =AS47 -> 11.5
B49: 1 | T49: 1 | Y49: 3 | Z49: 6 | AA49: 3 | AB49: 3.7 | AC49: 34.5 | AD49: =AB48 -> 1.4 | AE49: =AC48 -> 23 | AG49: 3 | AH49: 4 | AI49: 3 | AJ49: 7.5 | AK49: 34.5 | AL49: =AJ48 -> 1.4 | AM49: =AK48 -> 23 | AO49: 3 | AP49: 6 | AQ49: 3 | AR49: 3.7 | AS49: 34.5 | AT49: =AR48 -> 1.4 | AU49: =AS48 -> 23
B50: 2 | F50: =IF(D5="","",D5) -> 3.9 | T50: 2 | Y50: 4 | Z50: 7 | AA50: 4 | AB50: 5.64 | AC50: 46 | AD50: =AB49 -> 3.7 | AE50: =AC48 -> 23 | AG50: 4 | AH50: 5 | AI50: 4 | AJ50: 9.35 | AK50: 46 | AL50: =AJ49 -> 7.5 | AM50: =AK48 -> 23 | AO50: 4 | AP50: 7 | AQ50: 4 | AR50: 5.64 | AS50: 46 | AT50: =AR49 -> 3.7 | AU50: =AS48 -> 23
B51: 3 | F51: 1.4 | G51: =IF($F51="","",SUM($F50:$F51)) -> 5.3 | T51: 3 | Y51: 5 | Z51: 6 | AA51: 5 | AB51: 11.2 | AC51: 57.5 | AD51: =AB49 -> 3.7 | AE51: =AC49 -> 34.5 | AG51: 5 | AH51: 6 | AI51: 5 | AJ51: 11.2 | AK51: 57.5 | AL51: =AJ49 -> 7.5 | AM51: =AK49 -> 34.5 | AO51: 5 | AP51: 6 | AQ51: 5 | AR51: 11.2 | AS51: 57.5 | AT51: =AR49 -> 3.7 | AU51: =AS49 -> 34.5
B52: 4 | F52: 6.1 | G52: 7.5 | H52: =IF($F52="","",SUM($F50:$F52)) -> 11.4 | T52: 4 | Y52: 6 | Z52: 7 | AA52: 6 | AB52: 13.14 | AC52: 69 | AD52: =AB50 -> 5.64 | AE52: =AC49 -> 34.5 | AG52: 6 | AH52: 7 | AI52: 6 | AJ52: 13.14 | AK52: 69 | AL52: =AJ50 -> 9.35 | AM52: =AK49 -> 34.5 | AO52: 6 | AP52: 7 | AQ52: 6 | AR52: 13.14 | AS52: 69 | AT52: =AR50 -> 5.64 | AU52: =AS49 -> 34.5
B53: 5 | F53: 1.85 | G53: 7.95 | H53: 9.35 | I53: =IF($F53="","",SUM($F50:$F53)) -> 13.25 | T53: 5 | Y53: 7 | Z53: 7 | AA53: 7 | AB53: 17.04 | AC53: 77 | AD53: =AB50 -> 5.64 | AE53: =AC50 -> 46 | AG53: 7 | AH53: 7 | AI53: 7 | AJ53: 17.04 | AK53: 77 | AL53: =AJ50 -> 9.35 | AM53: =AK50 -> 46 | AO53: 7 | AP53: 7 | AQ53: 7 | AR53: 17.04 | AS53: 77 | AT53: =AR50 -> 5.64 | AU53: =AS50 -> 46
B54: 6 | F54: 1.85 | G54: 3.7 | H54: 9.8 | I54: 11.2 | J54: =IF($F54="","",SUM($F50:$F54)) -> 15.1 | T54: 6 | Y54: 8 | AA54: 8 | AD54: =AB51 -> 11.2 | AE54: =AC50 -> 46 | AG54: 8 | AI54: 8 | AL54: =AJ51 -> 11.2 | AM54: =AK50 -> 46 | AO54: 8 | AQ54: 8 | AT54: =AR51 -> 11.2 | AU54: =AS50 -> 46
B55: 7 | F55: 1.94 | G55: 3.79 | H55: 5.64 | I55: 11.74 | J55: 13.14 | K55: =IF($F55="","",SUM($F50:$F55)) -> 17.04 | T55: 7 | Y55: 9 | AA55: 9 | AD55: =AB51 -> 11.2 | AE55: =AC51 -> 57.5 | AG55: 9 | AI55: 9 | AL55: =AJ51 -> 11.2 | AM55: =AK51 -> 57.5 | AO55: 9 | AQ55: 9 | AT55: =AR51 -> 11.2 | AU55: =AS51 -> 57.5
B56: 8 | L56: =IF($F56="","",SUM($F50:$F56)) ->  | T56: 8 | Y56: 10 | AA56: 10 | AD56: =AB52 -> 13.14 | AE56: =AC51 -> 57.5 | AG56: 10 | AI56: 10 | AL56: =AJ52 -> 13.14 | AM56: =AK51 -> 57.5 | AO56: 10 | AQ56: 10 | AT56: =AR52 -> 13.14 | AU56: =AS51 -> 57.5
B57: 9 | M57: =IF($F57="","",SUM($F50:$F57)) ->  | T57: 9 | Y57: 11 | AA57: 11 | AD57: =AB52 -> 13.14 | AE57: =AC52 -> 69 | AG57: 11 | AI57: 11 | AL57: =AJ52 -> 13.14 | AM57: =AK52 -> 69 | AO57: 11 | AQ57: 11 | AT57: =AR52 -> 13.14 | AU57: =AS52 -> 69
B58: 10 | N58: =IF($F58="","",SUM($F50:$F58)) ->  | T58: 10 | Y58: 12 | AA58: 12 | AD58: =AB53 -> 17.04 | AE58: =AC52 -> 69 | AG58: 12 | AI58: 12 | AL58: =AJ53 -> 17.04 | AM58: =AK52 -> 69 | AO58: 12 | AQ58: 12 | AT58: =AR53 -> 17.04 | AU58: =AS52 -> 69
B59: 11 | O59: =IF($F59="","",SUM($F50:$F59)) ->  | T59: 11 | Y59: 13 | AA59: 13 | AD59: =AB53 -> 17.04 | AE59: =AC53 -> 77 | AG59: 13 | AI59: 13 | AL59: =AJ53 -> 17.04 | AM59: =AK53 -> 77 | AO59: 13 | AQ59: 13 | AT59: =AR53 -> 17.04 | AU59: =AS53 -> 77
B60: 12 | O60: =IF($F60="","",SUM($F51:$F60)) ->  | P60: =IF($F60="","",SUM($F50:$F60)) ->  | T60: 12 | Y60: 14 | AA60: 14 | AD60: =AB54 ->  | AE60: =AC53 -> 77 | AG60: 14 | AI60: 14 | AL60: =AJ54 ->  | AM60: =AK53 -> 77 | AO60: 14 | AQ60: 14 | AT60: =AR54 ->  | AU60: =AS53 -> 77
B61: 13 | O61: =IF($F61="","",SUM($F52:$F61)) ->  | P61: =IF($F61="","",SUM($F51:$F61)) ->  | Q61: =IF($F61="","",SUM($F50:$F61)) ->  | T61: 13 | Y61: 15 | AA61: 15 | AD61: =AB54 ->  | AE61: =AC54 ->  | AG61: 15 | AI61: 15 | AL61: =AJ54 ->  | AM61: =AK54 ->  | AO61: 15 | AQ61: 15 | AT61: =AR54 ->  | AU61: =AS54 -> 
B62: 14 | O62: =IF($F62="","",SUM($F53:$F62)) ->  | P62: =IF($F62="","",SUM($F52:$F62)) ->  | Q62: =IF($F62="","",SUM($F51:$F62)) ->  | R62: =IF($F62="","",SUM($F50:$F62)) ->  | T62: 14 | AD62: =AB55 ->  | AE62: =AC54 ->  | AL62: =AJ55 ->  | AM62: =AK54 ->  | AT62: =AR55 ->  | AU62: =AS54 -> 
B63: 15 | O63: =IF($F63="","",SUM($F54:$F63)) ->  | P63: =IF($F63="","",SUM($F53:$F63)) ->  | Q63: =IF($F63="","",SUM($F52:$F63)) ->  | R63: =IF($F63="","",SUM($F51:$F63)) ->  | S63: =IF($F63="","",SUM($F50:$F63)) ->  | T63: 15 | AD63: =AB55 ->  | AE63: =AC55 ->  | AL63: =AJ55 ->  | AM63: =AK55 ->  | AT63: =AR55 ->  | AU63: =AS55 -> 
C64: MIN | E64: =MIN(E49:E63) -> 0 | F64: =MIN(F49:F63) -> 1.4 | G64: 3.7 | H64: 5.64 | I64: 11.2 | J64: 13.14 | K64: 17.04 | L64: 0 | M64: 0 | N64: 0 | O64: 0 | P64: 0 | Q64: 0 | R64: 0 | S64: 0 | AD64: =AB56 ->  | AE64: =AC55 ->  | AL64: =AJ56 ->  | AM64: =AK55 ->  | AT64: =AR56 ->  | AU64: =AS55 -> 
F65: =IF(F50="","",VLOOKUP(F64,F$49:$T$63,F47,FALSE)) -> 3 | G65: =IF(G51="","",VLOOKUP(G64,G$49:$T$63,G47,FALSE)) -> 6 | H65: =IF(H52="","",VLOOKUP(H64,H$49:$T$63,H47,FALSE)) -> 7 | I65: =IF(I53="","",VLOOKUP(I64,I$49:$T$63,I47,FALSE)) -> 6 | J65: =IF(J54="","",VLOOKUP(J64,J$49:$T$63,J47,FALSE)) -> 7 | K65: =IF(K55="","",VLOOKUP(K64,K$49:$T$63,K47,FALSE)) -> 7 | L65: =IF(L56="","",VLOOKUP(L64,L$49:$T$63,L47,FALSE)) ->  | M65: =IF(M57="","",VLOOKUP(M64,M$49:$T$63,M47,FALSE)) ->  | N65: =IF(N58="","",VLOOKUP(N64,N$49:$T$63,N47,FALSE)) ->  | O65: =IF(O59="","",VLOOKUP(O64,O$49:$T$63,O47,FALSE)) ->  | P65: =IF(P60="","",VLOOKUP(P64,P$49:$T$63,P47,FALSE)) ->  | Q65: =IF(Q61="","",VLOOKUP(Q64,Q$49:$T$63,Q47,FALSE)) ->  | R65: =IF(R62="","",VLOOKUP(R64,R$49:$T$63,R47,FALSE)) ->  | S65: =IF(S63="","",VLOOKUP(S64,S$49:$T$63,S47,FALSE)) ->  | AD65: =AB56 ->  | AE65: =AC56 ->  | AL65: =AJ56 ->  | AM65: =AK56 ->  | AT65: =AR56 ->  | AU65: =AS56 -> 
E66: LOAD t/m | AD66: =AB57 ->  | AL66: =AJ57 ->  | AT66: =AR57 -> 
F67: 15 | G67: 14 | H67: 13 | I67: 12 | J67: 11 | K67: 10 | L67: 9 | M67: 8 | N67: 7 | O67: 6 | P67: 5 | Q67: 4 | R67: 3 | S67: 2 | AD67: =AB57 ->  | AE67: =AC57 -> 
E68: 1 | F68: 2 | G68: 3 | H68: 4 | I68: 5 | J68: 6 | K68: 7 | L68: 8 | M68: 9 | N68: 10 | O68: 11 | P68: 12 | Q68: 13 | R68: 14 | S68: 15 | AD68: =AB58 ->  | AE68: =AC57 -> 
B69: 1 | T69: 1
B70: 2 | F70: =IF($C5="","",F30/F50) -> 5 | T70: 2
B71: 3 | F71: 16.42857143 | G71: =IF($C6="","",G31/G51) -> 5.849056604 | T71: 3
B72: 4 | F72: 3.770491803 | G72: 4.6 | H72: =IF($C7="","",H32/H52) -> 3.728070175 | T72: 4
B73: 5 | F73: 12.43243243 | G73: 4.339622642 | H73: 4.919786096 | I73: =IF($C8="","",I33/I53) -> 4.075471698 | T73: 5
B74: 6 | F74: 12.43243243 | G74: 9.324324324 | H74: 4.693877551 | I74: 5.133928571 | J74: =IF($C9="","",J34/J54) -> 4.337748344 | T74: 6
B75: 7 | F75: 11.8556701 | G75: 9.102902375 | H75: 8.156028369 | I75: 4.897785349 | J75: 5.251141553 | K75: =IF($C10="","",K35/K55) -> 4.518779343 | T75: 7
B76: 8 | L76: =IF($C11="","",L36/L56) ->  | T76: 8
B77: 9 | M77: =IF($C12="","",M37/M57) ->  | T77: 9
B78: 10 | N78: =IF($C13="","",N38/N58) ->  | T78: 10
B79: 11 | O79: =IF($C14="","",O39/O59) ->  | T79: 11 | AY79: =Zdroj!AQ80 -> 0
B80: 12 | O80: =IF($C15="","",O40/O60) ->  | P80: =IF($C15="","",P40/P60) ->  | T80: 12 | BB80: súradnice
B81: 13 | O81: =IF($C16="","",O41/O61) ->  | P81: =IF($C16="","",P41/P61) ->  | Q81: =IF($C16="","",Q41/Q61) ->  | T81: 13 | AH81: x | AI81: m | AJ81: m/x | AL81: x | AM81: m | AN81: m/x | AO81: m*x | AQ81: x | AR81: m | AS81: m/x | AT81: m*x | AV81: x | AW81: m | AY81: x | AZ81: m | BB81: x | BC81: m
B82: 14 | O82: =IF($C17="","",O42/O62) ->  | P82: =IF($C17="","",P42/P62) ->  | Q82: =IF($C17="","",Q42/Q62) ->  | R82: =IF($C17="","",R42/R62) ->  | T82: 14 | AD82: =IF(AB47="","",AB47) -> 0 | AE82: =IF(AC47="","",AC47) -> 11.5 | AF82: =IF(AD82=0,AE82,IF(AD82="","",AE82/AD82)) -> 11.5 | AH82: 0 | AI82: 11.5 | AJ82: 11.5 | AL82: 0 | AM82: 11.5 | AN82: 11.5 | AO82: =IF(AL82="","",AL82*AM82) -> 0 | AQ82: 0 | AR82: 11.5 | AS82: 11.5 | AT82: 0 | AV82: =AQ82 -> 0 | AW82: =AR82 -> 11.5 | AY82: 0 | AZ82: 11.5 | BB82: =IF(AY82="","",AY82) -> 0 | BC82: =IF(AZ82="","",AZ82) -> 11.5
B83: 15 | O83: =IF($C18="","",O43/O63) ->  | P83: =IF($C18="","",P43/P63) ->  | Q83: =IF($C18="","",Q43/Q63) ->  | R83: =IF($C18="","",R43/R63) ->  | S83: =IF($C18="","",S43/S63) ->  | T83: 15 | AD83: 1.4 | AE83: 23 | AF83: =IF(AD83=0,AE83,IF(AD83="","",AE83/AD83)) -> 16.42857143 | AH83: 0 | AI83: 11.5 | AJ83: 11.5 | AL83: 0 | AM83: 11.5 | AN83: 11.5 | AO83: 0 | AQ83: 0 | AR83: 11.5 | AS83: 11.5 | AT83: 0 | AV83: =IF($AR83>MAX($AR$82:AR82),AQ83,"") ->  | AW83: =IF($AR83>MAX($AR$82:AR82),AR83,"") ->  | AY83: 1.4 | AZ83: 23 | BB83: =IF(AY83="","",AY83) -> 1.4 | BC83: =IF(AZ83="","",AZ82) -> 11.5
C84: MAX | E84: =MAX(E69:E80) -> 0 | F84: =MAX(F69:F83) -> 16.42857143 | G84: 9.324324324 | H84: 8.156028369 | I84: 5.133928571 | J84: 5.251141553 | K84: 4.518779343 | L84: 0 | M84: 0 | N84: 0 | O84: 0 | P84: 0 | Q84: 0 | R84: 0 | S84: =MAX(S69:S83) -> 0 | AD84: 3.7 | AE84: 34.5 | AF84: 9.324324324 | AH84: 0 | AI84: 11.5 | AJ84: 11.5 | AL84: 0 | AM84: 11.5 | AN84: 11.5 | AO84: 0 | AQ84: 1.4 | AR84: 23 | AS84: 16.42857143 | AT84: 32.2 | AV84: =IF($AR84>MAX($AR$82:AR83),AQ84,"") -> 1.4 | AW84: =IF($AR84>MAX($AR$82:AR83),AR84,"") -> 23 | AY84: 3.7 | AZ84: 34.5 | BB84: =IF(AY83="","",AY83) -> 1.4 | BC84: =IF(AZ83="","",AZ83) -> 23
F85: =IF(F70="","",VLOOKUP(F84,F$69:$T$83,F67,FALSE)) -> 3 | G85: =IF(G71="","",VLOOKUP(G84,G$69:$T$83,G67,FALSE)) -> 6 | H85: =IF(H72="","",VLOOKUP(H84,H$69:$T$83,H67,FALSE)) -> 7 | I85: =IF(I73="","",VLOOKUP(I84,I$69:$T$83,I67,FALSE)) -> 6 | J85: =IF(J74="","",VLOOKUP(J84,J$69:$T$83,J67,FALSE)) -> 7 | K85: =IF(K75="","",VLOOKUP(K84,K$69:$T$83,K67,FALSE)) -> 7 | L85: =IF(L76="","",VLOOKUP(L84,L$69:$T$83,L67,FALSE)) ->  | M85: =IF(M77="","",VLOOKUP(M84,M$69:$T$83,M67,FALSE)) ->  | N85: =IF(N78="","",VLOOKUP(N84,N$69:$T$83,N67,FALSE)) ->  | O85: =IF(O79="","",VLOOKUP(O84,O$69:$T$83,O67,FALSE)) ->  | P85: =IF(P80="","",VLOOKUP(P84,P$69:$T$83,P67,FALSE)) ->  | Q85: =IF(Q81="","",VLOOKUP(Q84,Q$69:$T$83,Q67,FALSE)) ->  | R85: =IF(R82="","",VLOOKUP(R84,R$69:$T$83,R67,FALSE)) ->  | S85: =IF(S83="","",VLOOKUP(S84,S$69:$T$83,S67,FALSE)) ->  | AD85: 5.64 | AE85: 46 | AF85: 8.156028369 | AH85: 1.4 | AI85: 23 | AJ85: 16.42857143 | AL85: 1.4 | AM85: 23 | AN85: 16.42857143 | AO85: 32.2 | AQ85: 3.7 | AR85: 34.5 | AS85: 9.324324324 | AT85: 127.65 | AV85: =IF($AR85>MAX($AR$82:AR84),AQ85,"") -> 3.7 | AW85: =IF($AR85>MAX($AR$82:AR84),AR85,"") -> 34.5 | AY85: 5.64 | AZ85: 46 | BB85: =IF(AY84="","",AY84) -> 3.7 | BC85: =IF(AZ84="","",AZ83) -> 23
E86: 14 | F86: 15 | G86: 16 | H86: 17 | I86: 18 | J86: 19 | K86: 20 | L86: 21 | M86: 22 | N86: 23 | O86: 24 | P86: 25 | Q86: 26 | R86: 27 | S86: 28 | AD86: 11.2 | AE86: 57.5 | AF86: 5.133928571 | AH86: 1.4 | AI86: 23 | AJ86: 16.42857143 | AL86: 1.4 | AM86: 23 | AN86: 16.42857143 | AO86: 32.2 | AQ86: 5.64 | AR86: 46 | AS86: 8.156028369 | AT86: 259.44 | AV86: =IF($AR86>MAX($AR$82:AR85),AQ86,"") -> 5.64 | AW86: =IF($AR86>MAX($AR$82:AR85),AR86,"") -> 46 | AY86: 11.2 | AZ86: 57.5 | BB86: =IF(AY84="","",AY84) -> 3.7 | BC86: =IF(AZ84="","",AZ84) -> 34.5
C87: m | D87: =VLOOKUP(C2,Zdroj!A3:A997,1,FALSE) -> 15 | E87: =INDEX(Zdroj!$A$3:$AT$17,Prepočet!$D$87,E86) -> 8 | F87: =INDEX(Zdroj!$A$3:$AT$17,Prepočet!$D$87,F86) -> 11.5 | G87: =INDEX(Zdroj!$A$3:$AT$17,Prepočet!$D$87,G86) -> 11.5 | H87: =INDEX(Zdroj!$A$3:$AT$17,Prepočet!$D$87,H86) -> 11.5 | I87: =INDEX(Zdroj!$A$3:$AT$17,Prepočet!$D$87,I86) -> 11.5 | J87: =INDEX(Zdroj!$A$3:$AT$17,Prepočet!$D$87,J86) -> 11.5 | K87: =INDEX(Zdroj!$A$3:$AT$17,Prepočet!$D$87,K86) -> 11.5 | L87: =INDEX(Zdroj!$A$3:$AT$17,Prepočet!$D$87,L86) -> 0 | M87: =INDEX(Zdroj!$A$3:$AT$17,Prepočet!$D$87,M86) -> 0 | N87: =INDEX(Zdroj!$A$3:$AT$17,Prepočet!$D$87,N86) -> 0 | O87: =INDEX(Zdroj!$A$3:$AT$17,Prepočet!$D$87,O86) -> 0 | P87: =INDEX(Zdroj!$A$3:$AT$17,Prepočet!$D$87,P86) -> 0 | Q87: =INDEX(Zdroj!$A$3:$AT$17,Prepočet!$D$87,Q86) -> 0 | R87: =INDEX(Zdroj!$A$3:$AT$17,Prepočet!$D$87,R86) -> 0 | S87: =INDEX(Zdroj!$A$3:$AT$17,Prepočet!$D$87,S86) -> 0 | AD87: 13.14 | AE87: 69 | AF87: 5.251141553 | AH87: 1.4 | AI87: 23 | AJ87: 16.42857143 | AL87: 1.4 | AM87: 23 | AN87: 16.42857143 | AO87: 32.2 | AQ87: 7.5 | AR87: 34.5 | AS87: 4.6 | AT87: 258.75 | AV87: =IF($AR87>MAX($AR$82:AR86),AQ87,"") ->  | AW87: =IF($AR87>MAX($AR$82:AR86),AR87,"") ->  | AY87: 13.14 | AZ87: 69 | BB87: =IF(AY85="","",AY85) -> 5.64 | BC87: =IF(AZ85="","",AZ84) -> 34.5
C88: x | D88: =VLOOKUP(C2,Zdroj!A3:A998,1,FALSE) -> 15 | E88: =INDEX(Zdroj!$A$3:$AT$17,Prepočet!$D$87,E86+16) -> 0 | F88: =INDEX(Zdroj!$A$3:$AT$17,Prepočet!$D$87,F86+16) -> 3.9 | G88: =INDEX(Zdroj!$A$3:$AT$17,Prepočet!$D$87,G86+16) -> 1.4 | H88: =INDEX(Zdroj!$A$3:$AT$17,Prepočet!$D$87,H86+16) -> 6.1 | I88: =INDEX(Zdroj!$A$3:$AT$17,Prepočet!$D$87,I86+16) -> 1.85 | J88: =INDEX(Zdroj!$A$3:$AT$17,Prepočet!$D$87,J86+16) -> 1.85 | K88: =INDEX(Zdroj!$A$3:$AT$17,Prepočet!$D$87,K86+16) -> 1.94 | L88: =INDEX(Zdroj!$A$3:$AT$17,Prepočet!$D$87,L86+16) -> 0 | M88: =INDEX(Zdroj!$A$3:$AT$17,Prepočet!$D$87,M86+16) -> 0 | N88: =INDEX(Zdroj!$A$3:$AT$17,Prepočet!$D$87,N86+16) -> 0 | O88: =INDEX(Zdroj!$A$3:$AT$17,Prepočet!$D$87,O86+16) -> 0 | P88: =INDEX(Zdroj!$A$3:$AT$17,Prepočet!$D$87,P86+16) -> 0 | Q88: =INDEX(Zdroj!$A$3:$AT$17,Prepočet!$D$87,Q86+16) -> 0 | R88: =INDEX(Zdroj!$A$3:$AT$17,Prepočet!$D$87,R86+16) -> 0 | S88: =INDEX(Zdroj!$A$3:$AT$17,Prepočet!$D$87,S86+16) -> 0 | AD88: 17.04 | AE88: 77 | AF88: 4.518779343 | AH88: 3.7 | AI88: 34.5 | AJ88: 9.324324324 | AL88: 3.7 | AM88: 34.5 | AN88: 9.324324324 | AO88: 127.65 | AQ88: 9.35 | AR88: 46 | AS88: 4.919786096 | AT88: 430.1 | AV88: =IF($AR88>MAX($AR$82:AR87),AQ88,"") ->  | AW88: =IF($AR88>MAX($AR$82:AR87),AR88,"") ->  | AY88: 17.04 | AZ88: 77 | BB88: =IF(AY85="","",AY85) -> 5.64 | BC88: =IF(AZ85="","",AZ85) -> 46
C89: m | E89: =IF(E87=0,"",E87) -> 8 | F89: =IF(F87=0,"",F87) -> 11.5 | G89: 11.5 | H89: 11.5 | I89: 11.5 | J89: 11.5 | K89: 11.5 | AH89: 3.7 | AI89: 34.5 | AJ89: 9.324324324 | AL89: 3.7 | AM89: 34.5 | AN89: 9.324324324 | AO89: =IF(AL89="","",AL89*AM89) -> 127.65 | AQ89: 11.2 | AR89: 57.5 | AS89: 5.133928571 | AT89: 644 | AV89: =IF($AR89>MAX($AR$82:AR88),AQ89,"") -> 11.2 | AW89: =IF($AR89>MAX($AR$82:AR88),AR89,"") -> 57.5 | BB89: =IF(AY86="","",AY86) -> 11.2 | BC89: =IF(AZ86="","",AZ85) -> 46
C90: x | E90: =IF(E88=0,"",E88) ->  | F90: 3.9 | G90: 1.4 | H90: 6.1 | I90: 1.85 | J90: 1.85 | K90: 1.94 | AH90: 5.64 | AI90: 46 | AJ90: 8.156028369 | AL90: 5.64 | AM90: 46 | AN90: 8.156028369 | AO90: 259.44 | AQ90: 13.14 | AR90: 69 | AS90: 5.251141553 | AT90: 906.66 | AV90: =IF($AR90>MAX($AR$82:AR89),AQ90,"") -> 13.14 | AW90: =IF($AR90>MAX($AR$82:AR89),AR90,"") -> 69 | BB90: =IF(AY86="","",AY86) -> 11.2 | BC90: =IF(AZ86="","",AZ86) -> 57.5
AH91: 5.64 | AI91: 46 | AJ91: 8.156028369 | AL91: 5.64 | AM91: 46 | AN91: 8.156028369 | AO91: 259.44 | AQ91: 17.04 | AR91: 77 | AS91: 4.518779343 | AT91: 1312.08 | AV91: =IF($AR91>MAX($AR$82:AR90),AQ91,"") -> 17.04 | AW91: =IF($AR91>MAX($AR$82:AR90),AR91,"") -> 77 | BB91: =IF(AY87="","",AY87) -> 13.14 | BC91: =IF(AZ87="","",AZ86) -> 57.5
AH92: 7.5 | AI92: 34.5 | AJ92: 4.6 | AL92: 7.5 | AM92: 34.5 | AN92: 4.6 | AO92: 258.75 | AV92: =IF($AR92>MAX($AR$82:AR91),AQ92,"") ->  | AW92: =IF($AR92>MAX($AR$82:AR91),AR92,"") ->  | BB92: =IF(AY87="","",AY87) -> 13.14 | BC92: =IF(AZ87="","",AZ87) -> 69
AH93: 9.35 | AI93: 46 | AJ93: 4.919786096 | AL93: 9.35 | AM93: 46 | AN93: 4.919786096 | AO93: 430.1 | AV93: =IF($AR93>MAX($AR$82:AR92),AQ93,"") ->  | AW93: =IF($AR93>MAX($AR$82:AR92),AR93,"") ->  | BB93: =IF(AY88="","",AY88) -> 17.04 | BC93: =IF(AZ88="","",AZ87) -> 69
AH94: 11.2 | AI94: 57.5 | AJ94: 5.133928571 | AL94: 11.2 | AM94: 57.5 | AN94: 5.133928571 | AO94: 644 | AV94: =IF($AR94>MAX($AR$82:AR93),AQ94,"") ->  | AW94: =IF($AR94>MAX($AR$82:AR93),AR94,"") ->  | BB94: =IF(AY88="","",AY88) -> 17.04 | BC94: =IF(AZ88="","",AZ88) -> 77
AH95: 11.2 | AI95: 57.5 | AJ95: 5.133928571 | AL95: 11.2 | AM95: 57.5 | AN95: 5.133928571 | AO95: 644 | AV95: =IF($AR95>MAX($AR$82:AR94),AQ95,"") ->  | AW95: =IF($AR95>MAX($AR$82:AR94),AR95,"") ->  | BB95: =IF(AY89="","",AY89) ->  | BC95: =IF(AZ89="","",AZ88) -> 
AH96: 11.2 | AI96: 57.5 | AJ96: 5.133928571 | AL96: 11.2 | AM96: 57.5 | AN96: 5.133928571 | AO96: 644 | AV96: =IF($AR96>MAX($AR$82:AR95),AQ96,"") ->  | AW96: =IF($AR96>MAX($AR$82:AR95),AR96,"") ->  | BB96: =IF(AY89="","",AY89) ->  | BC96: =IF(AZ89="","",AZ89) -> 
AD97: =IF(AJ47="","",AJ47) -> 0 | AE97: =IF(AK47="","",AK47) -> 11.5 | AF97: =IF(AD97=0,AE97,IF(AD97="","",AE97/AD97)) -> 11.5 | AH97: 13.14 | AI97: 69 | AJ97: 5.251141553 | AL97: 13.14 | AM97: 69 | AN97: 5.251141553 | AO97: 906.66 | AV97: =IF($AR97>MAX($AR$82:AR96),AQ97,"") ->  | AW97: =IF($AR97>MAX($AR$82:AR96),AR97,"") ->  | BB97: =IF(AY90="","",AY90) ->  | BC97: =IF(AZ90="","",AZ89) -> 
AD98: 1.4 | AE98: 23 | AF98: 16.42857143 | AH98: 13.14 | AI98: 69 | AJ98: 5.251141553 | AL98: 13.14 | AM98: 69 | AN98: 5.251141553 | AO98: 906.66 | AV98: =IF($AR98>MAX($AR$82:AR97),AQ98,"") ->  | AW98: =IF($AR98>MAX($AR$82:AR97),AR98,"") ->  | BB98: =IF(AY90="","",AY90) ->  | BC98: =IF(AZ90="","",AZ90) -> 
AD99: 7.5 | AE99: 34.5 | AF99: 4.6 | AH99: 13.14 | AI99: 69 | AJ99: 5.251141553 | AL99: 13.14 | AM99: 69 | AN99: 5.251141553 | AO99: 906.66 | AV99: =IF($AR99>MAX($AR$82:AR98),AQ99,"") ->  | AW99: =IF($AR99>MAX($AR$82:AR98),AR99,"") ->  | BB99: =IF(AY91="","",AY91) ->  | BC99: =IF(AZ91="","",AZ90) -> 
AD100: 9.35 | AE100: 46 | AF100: 4.919786096 | AH100: 17.04 | AI100: 77 | AJ100: 4.518779343 | AL100: 17.04 | AM100: 77 | AN100: 4.518779343 | AO100: 1312.08 | AV100: =IF($AR100>MAX($AR$82:AR99),AQ100,"") ->  | AW100: =IF($AR100>MAX($AR$82:AR99),AR100,"") ->  | BB100: =IF(AY91="","",AY91) ->  | BC100: =IF(AZ91="","",AZ91) -> 
AD101: 11.2 | AE101: 57.5 | AF101: 5.133928571 | AH101: 17.04 | AI101: 77 | AJ101: 4.518779343 | AL101: 17.04 | AM101: 77 | AN101: 4.518779343 | AO101: 1312.08 | AV101: =IF($AR101>MAX($AR$82:AR100),AQ101,"") ->  | AW101: =IF($AR101>MAX($AR$82:AR100),AR101,"") ->  | BB101: =IF(AY92="","",AY92) ->  | BC101: =IF(AZ92="","",AZ91) -> 
AD102: 13.14 | AE102: 69 | AF102: 5.251141553 | AH102: 17.04 | AI102: 77 | AJ102: 4.518779343 | AL102: 17.04 | AM102: 77 | AN102: 4.518779343 | AO102: 1312.08 | AV102: =IF($AR102>MAX($AR$82:AR101),AQ102,"") ->  | AW102: =IF($AR102>MAX($AR$82:AR101),AR102,"") ->  | BB102: =IF(AY92="","",AY92) ->  | BC102: =IF(AZ92="","",AZ92) -> 
AD103: 17.04 | AE103: 77 | AF103: 4.518779343 | AV103: =IF($AR103>MAX($AR$82:AR102),AQ103,"") ->  | AW103: =IF($AR103>MAX($AR$82:AR102),AR103,"") ->  | BB103: =IF(AY93="","",AY93) ->  | BC103: =IF(AZ93="","",AZ92) -> 
AV104: =IF($AR104>MAX($AR$82:AR103),AQ104,"") ->  | AW104: =IF($AR104>MAX($AR$82:AR103),AR104,"") ->  | BB104: =IF(AY93="","",AY93) ->  | BC104: =IF(AZ93="","",AZ93) -> 
AV105: =IF($AR105>MAX($AR$82:AR104),AQ105,"") ->  | AW105: =IF($AR105>MAX($AR$82:AR104),AR105,"") ->  | BB105: =IF(AY94="","",AY94) ->  | BC105: =IF(AZ94="","",AZ93) -> 
AV106: =IF($AR106>MAX($AR$82:AR105),AQ106,"") ->  | AW106: =IF($AR106>MAX($AR$82:AR105),AR106,"") ->  | BB106: =IF(AY94="","",AY94) ->  | BC106: =IF(AZ94="","",AZ94) -> 
AV107: =IF($AR107>MAX($AR$82:AR106),AQ107,"") ->  | AW107: =IF($AR107>MAX($AR$82:AR106),AR107,"") ->  | BB107: =IF(AY95="","",AY95) ->  | BC107: =IF(AZ95="","",AZ94) -> 
AV108: =IF($AR108>MAX($AR$82:AR107),AQ108,"") ->  | AW108: =IF($AR108>MAX($AR$82:AR107),AR108,"") ->  | BB108: =IF(AY95="","",AY95) ->  | BC108: =IF(AZ95="","",AZ95) -> 
AV109: =IF($AR109>MAX($AR$82:AR108),AQ109,"") ->  | AW109: =IF($AR109>MAX($AR$82:AR108),AR109,"") ->  | BB109: =IF(AY96="","",AY96) ->  | BC109: =IF(AZ96="","",AZ95) -> 
AV110: =IF($AR110>MAX($AR$82:AR109),AQ110,"") ->  | AW110: =IF($AR110>MAX($AR$82:AR109),AR110,"") ->  | BB110: =IF(AY96="","",AY96) ->  | BC110: =IF(AZ96="","",AZ96) -> 
AV111: =IF($AR111>MAX($AR$82:AR110),AQ111,"") ->  | AW111: =IF($AR111>MAX($AR$82:AR110),AR111,"") ->  | BB111: =IF(AY97="","",AY97) ->  | BC111: =IF(AZ97="","",AZ96) -> 
AD112: =IF(AR47="","",AR47) -> 0 | AE112: =IF(AS47="","",AS47) -> 11.5 | AF112: 11.5 | AV112: =IF($AR112>MAX($AR$82:AR111),AQ112,"") ->  | AW112: =IF($AR112>MAX($AR$82:AR111),AR112,"") ->  | BB112: =IF(AY97="","",AY97) ->  | BC112: =IF(AZ97="","",AZ97) -> 
AD113: 1.4 | AE113: 23 | AF113: 16.42857143 | AV113: =IF($AR113>MAX($AR$82:AR112),AQ113,"") ->  | AW113: =IF($AR113>MAX($AR$82:AR112),AR113,"") ->  | BB113: =IF(AY98="","",AY98) ->  | BC113: =IF(AZ98="","",AZ97) -> 
AD114: 3.7 | AE114: 34.5 | AF114: 9.324324324 | AV114: =IF($AR114>MAX($AR$82:AR113),AQ114,"") ->  | AW114: =IF($AR114>MAX($AR$82:AR113),AR114,"") ->  | BB114: =IF(AY98="","",AY98) ->  | BC114: =IF(AZ98="","",AZ98) -> 
AD115: 5.64 | AE115: 46 | AF115: 8.156028369 | AV115: =IF($AR115>MAX($AR$82:AR114),AQ115,"") ->  | AW115: =IF($AR115>MAX($AR$82:AR114),AR115,"") ->  | BB115: =IF(AY99="","",AY99) ->  | BC115: =IF(AZ99="","",AZ98) -> 
AD116: 11.2 | AE116: 57.5 | AF116: 5.133928571 | AV116: =IF($AR116>MAX($AR$82:AR115),AQ116,"") ->  | AW116: =IF($AR116>MAX($AR$82:AR115),AR116,"") ->  | BB116: =IF(AY99="","",AY99) ->  | BC116: =IF(AZ99="","",AZ99) -> 
AD117: 13.14 | AE117: 69 | AF117: 5.251141553 | AV117: =IF($AR117>MAX($AR$82:AR116),AQ117,"") ->  | AW117: =IF($AR117>MAX($AR$82:AR116),AR117,"") ->  | BB117: =IF(AY100="","",AY100) ->  | BC117: =IF(AZ100="","",AZ99) -> 
AD118: 17.04 | AE118: 77 | AF118: 4.518779343 | AV118: =IF($AR118>MAX($AR$82:AR117),AQ118,"") ->  | AW118: =IF($AR118>MAX($AR$82:AR117),AR118,"") ->  | BB118: =IF(AY100="","",AY100) ->  | BC118: =IF(AZ100="","",AZ100) -> 
AV119: =IF($AR119>MAX($AR$82:AR118),AQ119,"") ->  | AW119: =IF($AR119>MAX($AR$82:AR118),AR119,"") ->  | BB119: =IF(AY101="","",AY101) ->  | BC119: =IF(AZ101="","",AZ100) -> 
AV120: =IF($AR120>MAX($AR$82:AR119),AQ120,"") ->  | AW120: =IF($AR120>MAX($AR$82:AR119),AR120,"") ->  | BB120: =IF(AY101="","",AY101) ->  | BC120: =IF(AZ101="","",AZ101) -> 
AV121: =IF($AR121>MAX($AR$82:AR120),AQ121,"") ->  | AW121: =IF($AR121>MAX($AR$82:AR120),AR121,"") ->  | BB121: =IF(AY102="","",AY102) ->  | BC121: =IF(AZ102="","",AZ101) -> 
AV122: =IF($AR122>MAX($AR$82:AR121),AQ122,"") ->  | AW122: =IF($AR122>MAX($AR$82:AR121),AR122,"") ->  | BB122: =IF(AY102="","",AY102) ->  | BC122: =IF(AZ102="","",AZ102) -> 
AV123: =IF($AR123>MAX($AR$82:AR122),AQ123,"") ->  | AW123: =IF($AR123>MAX($AR$82:AR122),AR123,"") ->  | BB123: =IF(AY103="","",AY103) ->  | BC123: =IF(AZ103="","",AZ102) -> 
AV124: =IF($AR124>MAX($AR$82:AR123),AQ124,"") ->  | AW124: =IF($AR124>MAX($AR$82:AR123),AR124,"") ->  | BB124: =IF(AY103="","",AY103) ->  | BC124: =IF(AZ103="","",AZ103) -> 
AV125: =IF($AR125>MAX($AR$82:AR124),AQ125,"") ->  | AW125: =IF($AR125>MAX($AR$82:AR124),AR125,"") ->  | BB125: =IF(AY104="","",AY104) ->  | BC125: =IF(AZ104="","",AZ103) -> 
AV126: =IF($AR126>MAX($AR$82:AR125),AQ126,"") ->  | AW126: =IF($AR126>MAX($AR$82:AR125),AR126,"") ->  | BB126: =IF(AY104="","",AY104) ->  | BC126: =IF(AZ104="","",AZ104) -> 
BB127: =IF(AY105="","",AY105) ->  | BC127: =IF(AZ105="","",AZ104) -> 
BB128: =IF(AY105="","",AY105) ->  | BC128: =IF(AZ105="","",AZ105) -> 
BB129: =IF(AY106="","",AY106) ->  | BC129: =IF(AZ106="","",AZ105) -> 
BB130: =IF(AY106="","",AY106) ->  | BC130: =IF(AZ106="","",AZ106) -> 
BB131: =IF(AY107="","",AY107) ->  | BC131: =IF(AZ107="","",AZ106) -> 
BB132: =IF(AY107="","",AY107) ->  | BC132: =IF(AZ107="","",AZ107) -> 
BB133: =IF(AY108="","",AY108) ->  | BC133: =IF(AZ108="","",AZ107) -> 
BC134: =IF(AZ108="","",AZ108) -> 

Sheet Súradnice (hidden)
B2: ID | C2: 1 | E2: 2 | G2: 3 | I2: 4 | K2: 5 | M2: 6 | O2: 7 | Q2: 8 | S2: 9 | U2: 10 | W2: 11 | Y2: 12 | AA2: 13 | AC2: 14 | AE2: 15
C3: x | D3: m | E3: x | F3: m | G3: x | H3: m | I3: x | J3: m | K3: x | L3: m | M3: x | N3: m | O3: x | P3: m | Q3: x | R3: m | S3: x | T3: m | U3: x | V3: m | W3: x | X3: m | Y3: x | Z3: m | AA3: x | AB3: m | AC3: x | AD3: m | AE3: x
A4: 1 | C4: 0 | D4: 10.85 | E4: 0 | F4: 11.4 | G4: 0 | H4: 10.36 | I4: 0 | J4: 9 | K4: 0 | L4: 12 | M4: 0 | N4: 9 | O4: 0 | P4: 10 | Q4: 0 | R4: 8 | S4: 0 | T4: 8 | U4: 0 | V4: 10 | W4: 0 | X4: 9.6 | Y4: 0 | Z4: 10 | AA4: 0 | AB4: 8 | AC4: 0 | AD4: 9.5 | AE4: 1 | AF4: 1 | AG4: 2 | AI4: 3 | AK4: 4 | AM4: 5 | AO4: 6 | AQ4: 7 | AS4: 8 | AU4: 9 | AW4: 10 | AY4: 11 | BA4: 12 | BC4: 13 | BE4: 14 | BG4: 15
A5: 2 | C5: 1.31 | D5: 10.85 | E5: 1.36 | F5: 11.4 | G5: 1.4 | H5: 10.36 | I5: 1.35 | J5: 9 | K5: 1.6 | L5: 12 | M5: 1.35 | N5: 9 | O5: 1.41 | P5: 10 | Q5: 1.36 | R5: 8 | S5: 1.36 | T5: 8 | U5: 1.33 | V5: 10 | W5: 1.32 | X5: 9.6 | Y5: 1.37 | Z5: 10 | AA5: 1.35 | AB5: 8 | AC5: 1.36 | AD5: 9.5 | AE5: 1 | AF5: 1
A6: 3 | C6: 1.31 | D6: 20.8 | E6: 1.36 | F6: 22.8 | G6: 1.4 | H6: 20.72 | I6: 1.35 | J6: 15 | K6: 1.6 | L6: 24 | M6: 1.35 | N6: 15 | O6: 1.41 | P6: 20 | Q6: 1.36 | R6: 15.5 | S6: 1.36 | T6: 16 | U6: 1.33 | V6: 17 | W6: 1.32 | X6: 17.5 | Y6: 1.37 | Z6: 18 | AA6: 1.35 | AB6: 16 | AC6: 1.36 | AD6: 19 | AE6: 0 | AF6: 10.85 | AG6: 0 | AH6: 11.4 | AI6: 0 | AJ6: 10.36 | AK6: 0 | AL6: 9 | AM6: 0 | AN6: 12 | AO6: 0 | AP6: 9 | AQ6: 0 | AR6: 10 | AS6: 0 | AT6: 8 | AU6: 0 | AV6: 8 | AW6: 0 | AX6: 10 | AY6: 0 | AZ6: 9.6 | BA6: 0 | BB6: 10 | BC6: 0 | BD6: 8 | BE6: 0 | BF6: 9.5 | BG6: 0 | BH6: 11.5
A7: 4 | C7: 1.35 | D7: 20.8 | E7: 2.72 | F7: 22.8 | G7: 2.8 | H7: 20.72 | I7: 1.36 | J7: 15 | K7: 3.2 | L7: 24 | M7: 1.36 | N7: 15 | O7: 2.82 | P7: 20 | Q7: 2.72 | R7: 15.5 | S7: 2.72 | T7: 16 | U7: 2.72 | V7: 17 | W7: 1.36 | X7: 17.5 | Y7: 3.1 | Z7: 18 | AA7: 2.7 | AB7: 16 | AC7: 2.72 | AD7: 19 | AE7: 1.31 | AF7: 10.85 | AG7: 1.36 | AH7: 11.4 | AI7: 1.4 | AJ7: 10.36 | AK7: 1.35 | AL7: 9 | AM7: 1.6 | AN7: 12 | AO7: 1.35 | AP7: 9 | AQ7: 1.41 | AR7: 10 | AS7: 1.36 | AT7: 8 | AU7: 1.36 | AV7: 8 | AW7: 1.33 | AX7: 10 | AY7: 1.32 | AZ7: 9.6 | BA7: 1.37 | BB7: 10 | BC7: 1.35 | BD7: 8 | BE7: 1.36 | BF7: 9.5 | BG7: 1.4 | BH7: 11.5
A8: 5 | C8: 1.35 | D8: 21.7 | E8: 2.72 | F8: 34.2 | G8: 2.8 | H8: 31.08 | I8: 1.36 | J8: 18 | K8: 3.2 | L8: 36 | M8: 1.36 | N8: 18 | O8: 2.82 | P8: 30 | Q8: 2.72 | R8: 22.74 | S8: 2.72 | T8: 24 | U8: 2.72 | V8: 28 | W8: 1.36 | X8: 19 | Y8: 3.1 | Z8: 28.5 | AA8: 2.7 | AB8: 23 | AC8: 2.72 | AD8: 28.5 | AE8: 1.31 | AF8: 20.8 | AG8: 1.36 | AH8: 22.8 | AI8: 1.4 | AJ8: 20.72 | AK8: 1.35 | AL8: 15 | AM8: 1.6 | AN8: 24 | AO8: 1.35 | AP8: 15 | AQ8: 1.41 | AR8: 20 | AS8: 1.36 | AT8: 15.5 | AU8: 1.36 | AV8: 16 | AW8: 1.33 | AX8: 17 | AY8: 1.32 | AZ8: 17.5 | BA8: 1.37 | BB8: 18 | BC8: 1.35 | BD8: 15 | BE8: 1.36 | BF8: 19 | BG8: 1.4 | BH8: 23
A9: 6 | C9: 2.62 | D9: 21.7 | E9: 4.08 | F9: 34.2 | G9: 4.2 | H9: 31.08 | I9: 2.7 | J9: 18 | K9: 4.8 | L9: 36 | M9: 2.72 | N9: 18 | O9: 4.23 | P9: 30 | Q9: 4.08 | R9: 22.74 | S9: 4.08 | T9: 24 | U9: 13.89 | V9: 28 | W9: 1.81 | X9: 19 | Y9: 4.65 | Z9: 28.5 | AA9: 4.5 | AB9: 23 | AC9: 4.08 | AD9: 28.5 | AE9: 1.35 | AF9: 20.8 | AG9: 2.72 | AH9: 22.8 | AI9: 2.8 | AJ9: 20.72 | AK9: 1.36 | AL9: 15 | AM9: 3.2 | AN9: 24 | AO9: 1.36 | AP9: 15 | AQ9: 2.82 | AR9: 20 | AS9: 2.72 | AT9: 15.5 | AU9: 2.72 | AV9: 16 | AW9: 2.72 | AX9: 17 | AY9: 1.36 | AZ9: 17.5 | BA9: 3.1 | BB9: 18 | BC9: 2.7 | BD9: 15 | BE9: 2.72 | BF9: 19 | BG9: 3.7 | BH9: 23
A10: 7 | C10: 2.62 | D10: 31.2 | E10: 4.08 | F10: 45.6 | G10: 4.2 | H10: 41.44 | I10: 2.7 | J10: 23 | K10: 4.8 | L10: 48 | M10: 2.72 | N10: 27 | O10: 4.23 | P10: 40 | Q10: 4.08 | R10: 30.24 | S10: 4.08 | T10: 32 | U10: 13.89 | V10: 36 | W10: 1.81 | X10: 19.2 | Y10: 4.65 | Z10: 38 | AA10: 4.5 | AB10: 28 | AC10: 4.08 | AD10: 38 | AE10: 1.35 | AF10: 21.7 | AG10: 2.72 | AH10: 34.2 | AI10: 2.8 | AJ10: 31.08 | AK10: 1.36 | AL10: 18 | AM10: 3.2 | AN10: 36 | AO10: 1.36 | AP10: 18 | AQ10: 2.82 | AR10: 30 | AS10: 2.72 | AT10: 22.74 | AU10: 2.72 | AV10: 24 | AW10: 2.72 | AX10: 28 | AY10: 1.36 | AZ10: 19 | BA10: 3.1 | BB10: 28.5 | BC10: 2.7 | BD10: 21 | BE10: 2.72 | BF10: 28.5 | BG10: 3.7 | BH10: 34.5
A11: 8 | C11: 3.93 | D11: 31.2 | E11: 5.44 | F11: 45.6 | G11: 5.6 | H11: 41.44 | I11: 2.72 | J11: 23 | K11: 6.4 | L11: 48 | M11: 4.08 | N11: 27 | O11: 5.64 | P11: 40 | Q11: 6.52 | R11: 30.24 | S11: 5.44 | T11: 32 | U11: 13.92 | V11: 36 | W11: 2.68 | X11: 19.2 | Y11: 6.2 | Z11: 38 | AA11: 5.8 | AB11: 28 | AC11: 5.44 | AD11: 38 | AE11: 2.62 | AF11: 21.7 | AG11: 4.08 | AH11: 34.2 | AI11: 4.2 | AJ11: 31.08 | AK11: 2.7 | AL11: 18 | AM11: 4.8 | AN11: 36 | AO11: 2.72 | AP11: 18 | AQ11: 4.23 | AR11: 30 | AS11: 4.08 | AT11: 22.74 | AU11: 4.08 | AV11: 24 | AW11: 13.89 | AX11: 28 | AY11: 1.81 | AZ11: 19 | BA11: 4.65 | BB11: 28.5 | BC11: 4.5 | BD11: 21 | BE11: 4.08 | BF11: 28.5 | BG11: 5.64 | BH11: 34.5
A12: 9 | C12: 3.93 | D12: 41.6 | E12: 5.44 | F12: 57 | G12: 5.6 | H12: 51.8 | I12: 2.72 | J12: 27 | K12: 6.4 | L12: 60 | M12: 4.08 | N12: 36 | O12: 5.64 | P12: 50 | Q12: 6.52 | R12: 36.5 | S12: 5.44 | T12: 40 | U12: 13.92 | V12: 37 | W12: 2.68 | X12: 27 | Y12: 6.2 | Z12: 47.5 | AA12: 5.8 | AB12: 30 | AC12: 5.44 | AD12: 47.5 | AE12: 2.62 | AF12: 31.2 | AG12: 4.08 | AH12: 45.6 | AI12: 4.2 | AJ12: 41.44 | AK12: 2.7 | AL12: 23 | AM12: 4.8 | AN12: 48 | AO12: 2.72 | AP12: 27 | AQ12: 4.23 | AR12: 40 | AS12: 4.08 | AT12: 30.24 | AU12: 4.08 | AV12: 32 | AW12: 13.89 | AX12: 36 | AY12: 1.81 | AZ12: 19.2 | BA12: 4.65 | BB12: 38 | BC12: 4.5 | BD12: 28 | BE12: 4.08 | BF12: 38 | BG12: 5.64 | BH12: 46
A13: 10 | C13: 5.24 | D13: 41.6 | E13: 15.94 | F13: 57 | G13: 7 | H13: 51.8 | I13: 4.08 | J13: 27 | K13: 8 | L13: 60 | M13: 5.44 | N13: 36 | O13: 7.05 | P13: 50 | Q13: 7.79 | R13: 36.5 | S13: 33.44 | T13: 40 | U13: 15.25 | V13: 37 | W13: 3.62 | X13: 27 | Y13: 7.75 | Z13: 47.5 | AA13: 6 | AB13: 30 | AC13: 9.94 | AD13: 47.5 | AE13: 3.93 | AF13: 31.2 | AG13: 5.44 | AH13: 45.6 | AI13: 5.6 | AJ13: 41.44 | AK13: 2.72 | AL13: 23 | AM13: 6.4 | AN13: 48 | AO13: 4.08 | AP13: 27 | AQ13: 5.64 | AR13: 40 | AS13: 6.52 | AT13: 30.24 | AU13: 5.44 | AV13: 32 | AW13: 13.92 | AX13: 36 | AY13: 2.68 | AZ13: 19.2 | BA13: 6.2 | BB13: 38 | BC13: 6 | BD13: 28 | BE13: 5.44 | BF13: 38 | BG13: 11.2 | BH13: 46
A14: 11 | C14: 5.24 | D14: 52 | E14: 15.94 | F14: 68.4 | G14: 7 | H14: 62.16 | I14: 4.08 | J14: 36 | K14: 8 | L14: 72 | M14: 5.44 | N14: 45 | O14: 7.05 | P14: 60 | Q14: 7.79 | R14: 37.5 | S14: 33.44 | T14: 48 | U14: 15.25 | V14: 45 | W14: 3.62 | X14: 28.8 | Y14: 7.75 | Z14: 57 | AA14: 6 | AB14: 35 | AC14: 9.94 | AD14: 57 | AE14: 3.93 | AF14: 41.6 | AG14: 5.44 | AH14: 57 | AI14: 5.6 | AJ14: 51.8 | AK14: 2.72 | AL14: 27 | AM14: 6.4 | AN14: 60 | AO14: 4.08 | AP14: 36 | AQ14: 5.64 | AR14: 50 | AS14: 6.52 | AT14: 36.5 | AU14: 5.44 | AV14: 40 | AW14: 13.92 | AX14: 37 | AY14: 2.68 | AZ14: 27 | BA14: 6.2 | BB14: 47.5 | BC14: 6 | BD14: 35 | BE14: 5.44 | BF14: 47.5 | BG14: 11.2 | BH14: 57.5
A15: 12 | C15: 9.57 | D15: 52 | E15: 17.3 | F15: 68.4 | G15: 9.3 | H15: 62.16 | I15: 5.48 | J15: 36 | K15: 10.8 | L15: 72 | M15: 6.8 | N15: 45 | O15: 8.46 | P15: 60 | Q15: 9.15 | R15: 37.5 | S15: 34.8 | T15: 48 | U15: 17.65 | V15: 45 | W15: 4.96 | X15: 28.8 | Y15: 9.3 | Z15: 57 | AA15: 7.3 | AB15: 35 | AC15: 11.34 | AD15: 57 | AE15: 5.24 | AF15: 41.6 | AG15: 15.94 | AH15: 57 | AI15: 7 | AJ15: 51.8 | AK15: 4.08 | AL15: 27 | AM15: 8 | AN15: 60 | AO15: 5.44 | AP15: 36 | AQ15: 7.05 | AR15: 50 | AS15: 7.79 | AT15: 36.5 | AU15: 33.44 | AV15: 40 | AW15: 15.25 | AX15: 37 | AY15: 4.96 | AZ15: 27 | BA15: 7.75 | BB15: 47.5 | BC15: 7.5 | BD15: 35 | BE15: 9.94 | BF15: 47.5 | BG15: 13.14 | BH15: 57.5
A16: 13 | C16: 9.57 | D16: 52.9 | E16: 17.3 | F16: 79.8 | G16: 9.3 | H16: 69.71 | I16: 5.48 | J16: 45 | K16: 10.8 | L16: 84 | M16: 6.8 | N16: 54 | O16: 8.46 | P16: 70 | Q16: 9.15 | R16: 44.5 | S16: 34.8 | T16: 56 | U16: 17.65 | V16: 51 | W16: 4.96 | X16: 34 | Y16: 9.3 | Z16: 66.5 | AA16: 7.3 | AB16: 37 | AC16: 11.34 | AD16: 66.5 | AE16: 5.24 | AF16: 52 | AG16: 15.94 | AH16: 68.4 | AI16: 7 | AJ16: 62.16 | AK16: 4.08 | AL16: 36 | AM16: 8 | AN16: 72 | AO16: 5.44 | AP16: 45 | AQ16: 7.05 | AR16: 60 | AS16: 7.79 | AT16: 37.5 | AU16: 33.44 | AV16: 48 | AW16: 15.25 | AX16: 45 | AY16: 4.96 | AZ16: 34 | BA16: 7.75 | BB16: 57 | BC16: 7.5 | BD16: 42 | BE16: 9.94 | BF16: 57 | BG16: 13.14 | BH16: 69
A17: 14 | C17: 10.84 | D17: 52.9 | E17: 18.66 | F17: 79.8 | G17: 10.75 | H17: 69.71 | I17: 9.12 | J17: 45 | K17: 12.4 | L17: 84 | M17: 14.27 | N17: 54 | O17: 9.87 | P17: 70 | Q17: 13.24 | R17: 44.5 | S17: 36.16 | T17: 56 | W17: 5.43 | X17: 34 | Y17: 10.85 | Z17: 66.5 | AA17: 7.5 | AB17: 37 | AC17: 14.94 | AD17: 66.5 | AE17: 9.57 | AF17: 52 | AG17: 17.3 | AH17: 68.4 | AI17: 9.3 | AJ17: 62.16 | AK17: 5.48 | AL17: 36 | AM17: 10.8 | AN17: 72 | AO17: 6.8 | AP17: 45 | AQ17: 8.46 | AR17: 60 | AS17: 9.15 | AT17: 37.5 | AU17: 34.8 | AV17: 48 | AW17: 17.65 | AX17: 45 | AY17: 5.43 | AZ17: 34 | BA17: 9.3 | BB17: 57 | BC17: 9 | BD17: 42 | BE17: 11.34 | BF17: 57 | BG17: 17.04 | BH17: 69
A18: 15 | C18: 10.84 | D18: 62.85 | E18: 18.66 | F18: 91.2 | G18: 10.75 | H18: 77.26 | I18: 9.12 | J18: 50 | K18: 12.4 | L18: 96 | M18: 14.27 | N18: 63 | O18: 9.87 | P18: 80 | Q18: 13.24 | R18: 44.74 | S18: 36.16 | T18: 64 | W18: 5.43 | X18: 38.4 | Y18: 10.85 | Z18: 76 | AA18: 7.5 | AB18: 42 | AC18: 14.94 | AD18: 73.15 | AE18: 9.57 | AF18: 52.9 | AG18: 17.3 | AH18: 79.8 | AI18: 9.3 | AJ18: 69.71 | AK18: 5.48 | AL18: 45 | AM18: 10.8 | AN18: 84 | AO18: 6.8 | AP18: 54 | AQ18: 8.46 | AR18: 70 | AS18: 9.15 | AT18: 44.5 | AU18: 34.8 | AV18: 56 | AW18: 17.65 | AX18: 51 | AY18: 5.43 | AZ18: 37.8 | BA18: 9.3 | BB18: 66.5 | BC18: 9 | BD18: 49 | BE18: 11.34 | BF18: 66.5 | BG18: 17.04 | BH18: 77
A19: 16 | C19: 10.88 | D19: 62.85 | E19: 21.26 | F19: 91.2 | G19: 13.62 | H19: 77.26 | I19: 11.67 | J19: 50 | M19: 15.63 | N19: 63 | O19: 14.87 | P19: 80 | Q19: 15.48 | R19: 44.74 | S19: 38.75 | T19: 64 | W19: 7.24 | X19: 38.4 | Y19: 12.8 | Z19: 76 | AA19: 8.8 | AB19: 42 | AE19: 10.84 | AF19: 52.9 | AG19: 18.66 | AH19: 79.8 | AI19: 10.75 | AJ19: 69.71 | AK19: 9.12 | AL19: 45 | AM19: 12.4 | AN19: 84 | AO19: 14.27 | AP19: 54 | AQ19: 9.87 | AR19: 70 | AS19: 13.24 | AT19: 44.5 | AU19: 36.16 | AV19: 56 | AY19: 7.24 | AZ19: 37.8 | BA19: 10.85 | BB19: 66.5 | BC19: 10.5 | BD19: 49 | BE19: 14.94 | BF19: 66.5
A20: 17 | C20: 10.88 | D20: 63.3 | E20: 21.26 | F20: 99 | G20: 13.62 | H20: 84.81 | I20: 11.67 | J20: 55 | M20: 15.63 | N20: 72 | O20: 14.87 | P20: 90 | Q20: 15.48 | R20: 51.74 | S20: 38.75 | T20: 72 | W20: 7.24 | X20: 48 | Y20: 12.8 | Z20: 76.5 | AA20: 8.8 | AB20: 44 | AE20: 10.84 | AF20: 62.85 | AG20: 18.66 | AH20: 91.2 | AI20: 10.75 | AJ20: 77.26 | AK20: 9.12 | AL20: 50 | AM20: 12.4 | AN20: 96 | AO20: 14.27 | AP20: 63 | AQ20: 9.87 | AR20: 80 | AS20: 13.24 | AT20: 44.74 | AU20: 36.16 | AV20: 64 | AY20: 7.24 | AZ20: 47.4 | BA20: 10.85 | BB20: 76 | BC20: 10.5 | BD20: 56 | BE20: 14.94 | BF20: 73.15
A21: 18 | C21: 12.19 | D21: 63.3 | G21: 15.27 | H21: 84.81 | I21: 14.27 | J21: 55 | M21: 16.99 | N21: 72 | O21: 16.28 | P21: 90 | Q21: 16.94 | R21: 51.74 | W21: 13.44 | X21: 48 | Y21: 14.17 | Z21: 76.5 | AA21: 9 | AB21: 44 | AE21: 10.88 | AF21: 62.85 | AG21: 21.26 | AH21: 91.2 | AI21: 13.62 | AJ21: 77.26 | AK21: 11.67 | AL21: 50 | AO21: 15.63 | AP21: 63 | AQ21: 14.87 | AR21: 80 | AS21: 15.48 | AT21: 44.74 | AU21: 38.75 | AV21: 64 | AY21: 13.44 | AZ21: 47.4 | BA21: 12.8 | BB21: 76 | BC21: 12 | BD21: 56
A22: 19 | C22: 12.19 | D22: 73.7 | G22: 15.27 | H22: 92.36 | I22: 14.27 | J22: 63 | M22: 16.99 | N22: 80 | O22: 16.28 | P22: 100 | Q22: 16.94 | R22: 59.24 | W22: 13.44 | X22: 55.8 | Y22: 14.17 | Z22: 84.5 | AA22: 9 | AB22: 49 | AE22: 10.88 | AF22: 63.3 | AG22: 21.26 | AH22: 99 | AI22: 13.62 | AJ22: 84.81 | AK22: 11.67 | AL22: 55 | AO22: 15.63 | AP22: 72 | AQ22: 14.87 | AR22: 90 | AS22: 15.48 | AT22: 51.74 | AU22: 38.75 | AV22: 72 | AY22: 13.44 | AZ22: 55.2 | BA22: 12.8 | BB22: 76.5 | BC22: 12 | BD22: 61
A23: 20 | C23: 15.64 | D23: 73.7 | I23: 15.67 | J23: 63 | M23: 20.68 | N23: 80 | O23: 17.73 | P23: 100 | Q23: 18.31 | R23: 59.24 | W23: 14.38 | X23: 55.8 | Y23: 14.35 | Z23: 84.5 | AA23: 10.3 | AB23: 49 | AE23: 12.19 | AF23: 63.3 | AI23: 15.27 | AJ23: 84.81 | AK23: 14.27 | AL23: 55 | AO23: 16.99 | AP23: 72 | AQ23: 16.28 | AR23: 90 | AS23: 16.94 | AT23: 51.74 | AY23: 14.38 | AZ23: 55.2 | BA23: 14.17 | BB23: 76.5 | BC23: 13.3 | BD23: 61
A24: 21 | C24: 15.64 | D24: 83 | I24: 15.67 | J24: 72 | M24: 20.68 | N24: 86 | O24: 17.73 | P24: 107.5 | Q24: 18.31 | R24: 60 | W24: 14.38 | X24: 57.5 | Y24: 14.35 | Z24: 86 | AA24: 10.3 | AB24: 51 | AE24: 12.19 | AF24: 73.7 | AI24: 15.27 | AJ24: 92.36 | AK24: 14.27 | AL24: 63 | AO24: 16.99 | AP24: 80 | AQ24: 16.28 | AR24: 100 | AS24: 16.94 | AT24: 59.24 | AY24: 14.38 | AZ24: 56.9 | BA24: 14.17 | BB24: 84.5 | BC24: 13.3 | BD24: 63
A25: 22 | I25: 19.31 | J25: 72 | M25: 20.69 | N25: 86 | O25: 20.33 | P25: 107.5 | Q25: 18.4 | R25: 60 | W25: 15.25 | X25: 57.5 | Y25: 15.72 | Z25: 86 | AA25: 10.5 | AB25: 51 | AE25: 15.64 | AF25: 73.7 | AK25: 15.67 | AL25: 63 | AO25: 20.68 | AP25: 80 | AQ25: 17.73 | AR25: 100 | AS25: 18.31 | AT25: 59.24 | AY25: 15.25 | AZ25: 56.9 | BA25: 14.35 | BB25: 84.5 | BC25: 13.5 | BD25: 63
A26: 23 | I26: 19.31 | J26: 77 | M26: 20.69 | N26: 88 | O26: 20.33 | P26: 115 | Q26: 18.4 | R26: 66.74 | W26: 15.25 | X26: 65.4 | Y26: 15.72 | Z26: 94 | AA26: 10.5 | AB26: 56 | AE26: 15.64 | AF26: 83 | AK26: 15.67 | AL26: 72 | AO26: 20.68 | AP26: 86 | AQ26: 17.73 | AR26: 107.5 | AS26: 18.31 | AT26: 60 | AY26: 15.25 | AZ26: 64.8 | BA26: 14.35 | BB26: 86 | BC26: 13.5 | BD26: 68
A27: 24 | I27: 19.37 | J27: 77 | M27: 22.04 | N27: 88 | Q27: 19.67 | R27: 66.74 | W27: 15.74 | X27: 65.4 | Y27: 19.12 | Z27: 94 | AA27: 11.8 | AB27: 56 | AK27: 19.31 | AL27: 72 | AO27: 20.69 | AP27: 86 | AQ27: 20.33 | AR27: 107.5 | AS27: 18.4 | AT27: 60 | AY27: 15.74 | AZ27: 64.8 | BA27: 15.72 | BB27: 86 | BC27: 14.8 | BD27: 68
A28: 25 | I28: 19.37 | J28: 80 | M28: 22.04 | N28: 95 | Q28: 19.67 | R28: 67 | W28: 15.74 | X28: 67 | Y28: 19.12 | Z28: 99 | AA28: 11.8 | AB28: 58 | AK28: 19.31 | AL28: 77 | AO28: 20.69 | AP28: 88 | AQ28: 20.33 | AR28: 115 | AS28: 18.4 | AT28: 66.74 | AY28: 15.74 | AZ28: 66.4 | BA28: 15.72 | BB28: 94 | BC28: 14.8 | BD28: 70
A29: 26 | I29: 20.67 | J29: 80 | M29: 24.59 | N29: 95 | Q29: 21.03 | R29: 67 | W29: 17.06 | X29: 67 | AA29: 12 | AB29: 58 | AK29: 19.37 | AL29: 77 | AO29: 22.04 | AP29: 88 | AS29: 19.67 | AT29: 66.74 | AY29: 17.06 | AZ29: 66.4 | BA29: 19.12 | BB29: 94 | BC29: 16.3 | BD29: 70
A30: 27 | I30: 20.67 | J30: 86 | M30: 24.59 | N30: 100 | Q30: 21.03 | R30: 74.74 | W30: 17.06 | X30: 75 | AA30: 12 | AB30: 63 | AK30: 19.37 | AL30: 80 | AO30: 22.04 | AP30: 95 | AS30: 19.67 | AT30: 67 | AY30: 17.06 | AZ30: 74.4 | BA30: 19.12 | BB30: 99 | BC30: 16.3 | BD30: 77
A31: 28 | I31: 20.72 | J31: 86 | W31: 19.34 | X31: 75 | AA31: 13.3 | AB31: 63 | AK31: 20.67 | AL31: 80 | AO31: 24.59 | AP31: 95 | AS31: 21.03 | AT31: 67 | AY31: 19.34 | AZ31: 74.4 | BC31: 17.8 | BD31: 77
A32: 29 | I32: 20.72 | J32: 88 | W32: 19.34 | X32: 82 | AA32: 13.3 | AB32: 65 | AK32: 20.67 | AL32: 86 | AO32: 24.59 | AP32: 100 | AS32: 21.03 | AT32: 74.74 | AY32: 19.34 | AZ32: 81.4 | BC32: 17.8 | BD32: 82
A33: 30 | I33: 22.07 | J33: 88 | AA33: 13.5 | AB33: 65 | AK33: 20.72 | AL33: 86 | AY33: 19.34 | AZ33: 75 | BC33: 19.3 | BD33: 82
I34: 22.07 | J34: 95 | AA34: 13.5 | AB34: 70 | AK34: 20.72 | AL34: 88 | AY34: 19.34 | AZ34: 82 | BC34: 19.3 | BD34: 89
I35: 24.62 | J35: 95 | AA35: 14.8 | AB35: 70 | AK35: 22.07 | AL35: 88 | BC35: 21.85 | BD35: 89
I36: 24.62 | J36: 100 | AA36: 14.8 | AB36: 72 | AK36: 22.07 | AL36: 95 | BC36: 21.85 | BD36: 94
AA37: 16.3 | AB37: 72 | AK37: 24.62 | AL37: 95 | BC37: 14.8 | BD37: 70
AA38: 16.3 | AB38: 79 | AK38: 24.62 | AL38: 100 | BC38: 14.8 | BD38: 72
AA39: 17.8 | AB39: 79 | BC39: 16.3 | BD39: 72
AA40: 17.8 | AB40: 86 | BC40: 16.3 | BD40: 79
AA41: 19.3 | AB41: 86 | BC41: 17.8 | BD41: 79
AA42: 19.3 | AB42: 93 | BC42: 17.8 | BD42: 86
AA43: 21.85 | AB43: 93 | BC43: 19.3 | BD43: 86
AA44: 21.85 | AB44: 98 | BC44: 19.3 | BD44: 93
BC45: 21.85 | BD45: 93
BC46: 21.85 | BD46: 98
AL50: 14 | AN50: 15 | AP50: 1 | AR50: 2 | AT50: 3 | AV50: 4 | AX50: 5 | AZ50: 6 | BB50: 7 | BD50: 8 | BF50: 9 | BH50: 10 | BJ50: 11 | BL50: 12 | BN50: 13 | BP50: 14 | BR50: 15
AL52: 0 | AM52: 9 | AN52: 0 | AO52: 9 | AP52: 0 | AQ52: 10.85 | AR52: 0 | AS52: 11.4 | AT52: 0 | AU52: 10.36 | AV52: 0 | AW52: 10.36 | AX52: 0 | AY52: 10.36 | AZ52: 0 | BA52: 10.36 | BB52: 0 | BC52: 10.36 | BD52: 0 | BE52: 10.36 | BF52: 0 | BG52: 10.36 | BH52: 0 | BI52: 9 | BJ52: 0 | BK52: 9 | BL52: 0 | BM52: 9 | BN52: 0 | BO52: 9 | BP52: 0 | BQ52: 9 | BR52: 0 | BS52: 9
AL53: 1.35 | AM53: 9 | AN53: 1.35 | AO53: 9 | AP53: 1.31 | AQ53: 10.85 | AR53: 1.36 | AS53: 11.4 | AT53: 1.4 | AU53: 10.36 | AV53: 1.4 | AW53: 10.36 | AX53: 1.4 | AY53: 10.36 | AZ53: 1.4 | BA53: 10.36 | BB53: 1.4 | BC53: 10.36 | BD53: 1.4 | BE53: 10.36 | BF53: 1.4 | BG53: 10.36 | BH53: 1.35 | BI53: 9 | BJ53: 1.35 | BK53: 9 | BL53: 1.35 | BM53: 9 | BN53: 1.35 | BO53: 9 | BP53: 1.35 | BQ53: 9 | BR53: 1.35 | BS53: 9
AL54: 1.35 | AM54: 15 | AN54: 1.35 | AO54: 15 | AP54: 1.31 | AQ54: 20.8 | AR54: 1.36 | AS54: 22.8 | AT54: 1.4 | AU54: 20.72 | AV54: 1.4 | AW54: 20.72 | AX54: 1.4 | AY54: 20.72 | AZ54: 1.4 | BA54: 20.72 | BB54: 1.4 | BC54: 20.72 | BD54: 1.4 | BE54: 20.72 | BF54: 1.4 | BG54: 20.72 | BH54: 1.35 | BI54: 15 | BJ54: 1.35 | BK54: 15 | BL54: 1.35 | BM54: 15 | BN54: 1.35 | BO54: 15 | BP54: 1.35 | BQ54: 15 | BR54: 1.35 | BS54: 15
AL55: 1.36 | AM55: 15 | AN55: 1.36 | AO55: 15 | AP55: 1.35 | AQ55: 20.8 | AR55: 2.72 | AS55: 22.8 | AT55: 2.8 | AU55: 20.72 | AV55: 2.8 | AW55: 20.72 | AX55: 2.8 | AY55: 20.72 | AZ55: 2.8 | BA55: 20.72 | BB55: 2.8 | BC55: 20.72 | BD55: 2.8 | BE55: 20.72 | BF55: 2.8 | BG55: 20.72 | BH55: 1.36 | BI55: 15 | BJ55: 1.36 | BK55: 15 | BL55: 1.36 | BM55: 15 | BN55: 1.36 | BO55: 15 | BP55: 1.36 | BQ55: 15 | BR55: 1.36 | BS55: 15
AL56: 1.36 | AM56: 18 | AN56: 1.36 | AO56: 18 | AP56: 1.35 | AQ56: 21.7 | AR56: 2.72 | AS56: 34.2 | AT56: 2.8 | AU56: 31.08 | AV56: 2.8 | AW56: 31.08 | AX56: 2.8 | AY56: 31.08 | AZ56: 2.8 | BA56: 31.08 | BB56: 2.8 | BC56: 31.08 | BD56: 2.8 | BE56: 31.08 | BF56: 2.8 | BG56: 31.08 | BH56: 1.36 | BI56: 18 | BJ56: 1.36 | BK56: 18 | BL56: 1.36 | BM56: 18 | BN56: 1.36 | BO56: 18 | BP56: 1.36 | BQ56: 18 | BR56: 1.36 | BS56: 18
AL57: 2.7 | AM57: 18 | AN57: 2.7 | AO57: 18 | AP57: 2.62 | AQ57: 21.7 | AR57: 4.08 | AS57: 34.2 | AT57: 4.2 | AU57: 31.08 | AV57: 4.2 | AW57: 31.08 | AX57: 4.2 | AY57: 31.08 | AZ57: 4.2 | BA57: 31.08 | BB57: 4.2 | BC57: 31.08 | BD57: 4.2 | BE57: 31.08 | BF57: 4.2 | BG57: 31.08 | BH57: 2.7 | BI57: 18 | BJ57: 2.7 | BK57: 18 | BL57: 2.72 | BM57: 18 | BN57: 2.7 | BO57: 18 | BP57: 2.7 | BQ57: 18 | BR57: 2.7 | BS57: 18
AL58: 2.7 | AM58: 23 | AN58: 2.7 | AO58: 23 | AP58: 2.62 | AQ58: 31.2 | AR58: 4.08 | AS58: 45.6 | AT58: 4.2 | AU58: 41.44 | AV58: 4.2 | AW58: 41.44 | AX58: 4.2 | AY58: 41.44 | AZ58: 4.2 | BA58: 41.44 | BB58: 4.2 | BC58: 41.44 | BD58: 4.2 | BE58: 41.44 | BF58: 4.2 | BG58: 41.44 | BH58: 2.7 | BI58: 23 | BJ58: 2.7 | BK58: 23 | BL58: 2.72 | BM58: 27 | BN58: 2.7 | BO58: 23 | BP58: 2.7 | BQ58: 23 | BR58: 2.7 | BS58: 23
AL59: 2.72 | AM59: 23 | AN59: 2.72 | AO59: 23 | AP59: 3.93 | AQ59: 31.2 | AR59: 5.44 | AS59: 45.6 | AT59: 5.6 | AU59: 41.44 | AV59: 5.6 | AW59: 41.44 | AX59: 5.6 | AY59: 41.44 | AZ59: 5.6 | BA59: 41.44 | BB59: 5.6 | BC59: 41.44 | BD59: 5.6 | BE59: 41.44 | BF59: 5.6 | BG59: 41.44 | BH59: 2.72 | BI59: 23 | BJ59: 2.72 | BK59: 23 | BL59: 4.08 | BM59: 27 | BN59: 2.72 | BO59: 23 | BP59: 2.72 | BQ59: 23 | BR59: 2.72 | BS59: 23
AL60: 2.72 | AM60: 27 | AN60: 2.72 | AO60: 27 | AP60: 3.93 | AQ60: 41.6 | AR60: 5.44 | AS60: 57 | AT60: 5.6 | AU60: 51.8 | AV60: 5.6 | AW60: 51.8 | AX60: 5.6 | AY60: 51.8 | AZ60: 5.6 | BA60: 51.8 | BB60: 5.6 | BC60: 51.8 | BD60: 5.6 | BE60: 51.8 | BF60: 5.6 | BG60: 51.8 | BH60: 2.72 | BI60: 27 | BJ60: 2.72 | BK60: 27 | BL60: 4.08 | BM60: 36 | BN60: 2.72 | BO60: 27 | BP60: 2.72 | BQ60: 27 | BR60: 2.72 | BS60: 27
AL61: 4.08 | AM61: 27 | AN61: 4.08 | AO61: 27 | AP61: 5.24 | AQ61: 41.6 | AR61: 15.94 | AS61: 57 | AT61: 7 | AU61: 51.8 | AV61: 7 | AW61: 51.8 | AX61: 7 | AY61: 51.8 | AZ61: 7 | BA61: 51.8 | BB61: 7 | BC61: 51.8 | BD61: 7 | BE61: 51.8 | BF61: 7 | BG61: 51.8 | BH61: 4.08 | BI61: 27 | BJ61: 4.08 | BK61: 27 | BL61: 5.44 | BM61: 36 | BN61: 4.08 | BO61: 27 | BP61: 4.08 | BQ61: 27 | BR61: 4.08 | BS61: 27
AL62: 4.08 | AM62: 36 | AN62: 4.08 | AO62: 36 | AP62: 5.24 | AQ62: 52 | AR62: 15.94 | AS62: 68.4 | AT62: 7 | AU62: 62.16 | AV62: 7 | AW62: 62.16 | AX62: 7 | AY62: 62.16 | AZ62: 7 | BA62: 62.16 | BB62: 7 | BC62: 62.16 | BD62: 7 | BE62: 62.16 | BF62: 7 | BG62: 62.16 | BH62: 4.08 | BI62: 36 | BJ62: 4.08 | BK62: 36 | BL62: 5.44 | BM62: 45 | BN62: 4.08 | BO62: 36 | BP62: 4.08 | BQ62: 36 | BR62: 4.08 | BS62: 36
AL63: 5.48 | AM63: 36 | AN63: 5.48 | AO63: 36 | AP63: 9.57 | AQ63: 52 | AR63: 17.3 | AS63: 68.4 | AT63: 9.3 | AU63: 62.16 | AV63: 9.3 | AW63: 62.16 | AX63: 9.3 | AY63: 62.16 | AZ63: 9.3 | BA63: 62.16 | BB63: 9.3 | BC63: 62.16 | BD63: 9.3 | BE63: 62.16 | BF63: 9.3 | BG63: 62.16 | BH63: 5.48 | BI63: 36 | BJ63: 5.48 | BK63: 36 | BL63: 6.8 | BM63: 45 | BN63: 5.48 | BO63: 36 | BP63: 5.48 | BQ63: 36 | BR63: 5.48 | BS63: 36
AL64: 5.48 | AM64: 45 | AN64: 5.48 | AO64: 45 | AP64: 9.57 | AQ64: 52.9 | AR64: 17.3 | AS64: 79.8 | AT64: 9.3 | AU64: 69.71 | AV64: 9.3 | AW64: 69.71 | AX64: 9.3 | AY64: 69.71 | AZ64: 9.3 | BA64: 69.71 | BB64: 9.3 | BC64: 69.71 | BD64: 9.3 | BE64: 69.71 | BF64: 9.3 | BG64: 69.71 | BH64: 5.48 | BI64: 45 | BJ64: 5.48 | BK64: 45 | BL64: 6.8 | BM64: 54 | BN64: 5.48 | BO64: 45 | BP64: 5.48 | BQ64: 45 | BR64: 5.48 | BS64: 45
AL65: 9.12 | AM65: 45 | AN65: 9.12 | AO65: 45 | AP65: 10.84 | AQ65: 52.9 | AR65: 18.66 | AS65: 79.8 | AT65: 10.75 | AU65: 69.71 | AV65: 10.75 | AW65: 69.71 | AX65: 10.75 | AY65: 69.71 | AZ65: 10.75 | BA65: 69.71 | BB65: 10.75 | BC65: 69.71 | BD65: 10.75 | BE65: 69.71 | BF65: 10.75 | BG65: 69.71 | BH65: 9.12 | BI65: 45 | BJ65: 9.12 | BK65: 45 | BL65: 14.27 | BM65: 54 | BN65: 9.12 | BO65: 45 | BP65: 9.12 | BQ65: 45 | BR65: 9.12 | BS65: 45
AL66: 9.12 | AM66: 50 | AN66: 9.12 | AO66: 50 | AP66: 10.84 | AQ66: 62.85 | AR66: 18.66 | AS66: 91.2 | AT66: 10.75 | AU66: 77.26 | AV66: 10.75 | AW66: 77.26 | AX66: 10.75 | AY66: 77.26 | AZ66: 10.75 | BA66: 77.26 | BB66: 10.75 | BC66: 77.26 | BD66: 10.75 | BE66: 77.26 | BF66: 10.75 | BG66: 77.26 | BH66: 9.12 | BI66: 50 | BJ66: 9.12 | BK66: 50 | BL66: 14.27 | BM66: 63 | BN66: 9.12 | BO66: 50 | BP66: 9.12 | BQ66: 50 | BR66: 9.12 | BS66: 50
AL67: 11.67 | AM67: 50 | AN67: 11.67 | AO67: 50 | AP67: 10.88 | AQ67: 62.85 | AR67: 21.26 | AS67: 91.2 | AT67: 13.62 | AU67: 77.26 | AV67: 13.62 | AW67: 77.26 | AX67: 13.62 | AY67: 77.26 | AZ67: 13.62 | BA67: 77.26 | BB67: 13.62 | BC67: 77.26 | BD67: 13.62 | BE67: 77.26 | BF67: 13.62 | BG67: 77.26 | BH67: 11.67 | BI67: 50 | BJ67: 11.67 | BK67: 50 | BL67: 15.63 | BM67: 63 | BN67: 11.67 | BO67: 50 | BP67: 11.67 | BQ67: 50 | BR67: 11.67 | BS67: 50
AL68: 11.67 | AM68: 55 | AN68: 11.67 | AO68: 55 | AP68: 10.88 | AQ68: 63.3 | AR68: 21.26 | AS68: 99 | AT68: 13.62 | AU68: 84.81 | AV68: 13.62 | AW68: 84.81 | AX68: 13.62 | AY68: 84.81 | AZ68: 13.62 | BA68: 84.81 | BB68: 13.62 | BC68: 84.81 | BD68: 13.62 | BE68: 84.81 | BF68: 13.62 | BG68: 84.81 | BH68: 11.67 | BI68: 55 | BJ68: 11.67 | BK68: 55 | BL68: 15.63 | BM68: 72 | BN68: 11.67 | BO68: 55 | BP68: 11.67 | BQ68: 55 | BR68: 11.67 | BS68: 55
AL69: 14.27 | AM69: 55 | AN69: 14.27 | AO69: 55 | AP69: 12.19 | AQ69: 63.3 | AT69: 15.27 | AU69: 84.81 | AV69: 15.27 | AW69: 84.81 | AX69: 15.27 | AY69: 84.81 | AZ69: 15.27 | BA69: 84.81 | BB69: 15.27 | BC69: 84.81 | BD69: 15.27 | BE69: 84.81 | BF69: 15.27 | BG69: 84.81 | BH69: 14.27 | BI69: 55 | BJ69: 14.27 | BK69: 55 | BL69: 16.99 | BM69: 72 | BN69: 14.27 | BO69: 55 | BP69: 14.27 | BQ69: 55 | BR69: 14.27 | BS69: 55
AL70: 14.27 | AM70: 63 | AN70: 14.27 | AO70: 63 | AP70: 12.19 | AQ70: 73.7 | AT70: 15.27 | AU70: 92.36 | AV70: 15.27 | AW70: 92.36 | AX70: 15.27 | AY70: 92.36 | AZ70: 15.27 | BA70: 92.36 | BB70: 15.27 | BC70: 92.36 | BD70: 15.27 | BE70: 92.36 | BF70: 15.27 | BG70: 92.36 | BH70: 14.27 | BI70: 63 | BJ70: 14.27 | BK70: 63 | BL70: 16.99 | BM70: 80 | BN70: 14.27 | BO70: 63 | BP70: 14.27 | BQ70: 63 | BR70: 14.27 | BS70: 63
AL71: 15.67 | AM71: 63 | AN71: 15.67 | AO71: 63 | AP71: 15.64 | AQ71: 73.7 | BH71: 15.67 | BI71: 63 | BJ71: 15.67 | BK71: 63 | BL71: 20.68 | BM71: 80 | BN71: 15.67 | BO71: 63 | BP71: 15.67 | BQ71: 63 | BR71: 15.67 | BS71: 63
AL72: 15.67 | AM72: 72 | AN72: 15.67 | AO72: 72 | AP72: 15.64 | AQ72: 83 | BH72: 15.67 | BI72: 72 | BJ72: 15.67 | BK72: 72 | BL72: 20.68 | BM72: 86 | BN72: 15.67 | BO72: 72 | BP72: 15.67 | BQ72: 72 | BR72: 15.67 | BS72: 72
AL73: 19.31 | AM73: 72 | AN73: 19.31 | AO73: 72 | BH73: 19.31 | BI73: 72 | BJ73: 19.31 | BK73: 72 | BL73: 20.69 | BM73: 86 | BN73: 19.31 | BO73: 72 | BP73: 19.31 | BQ73: 72 | BR73: 19.31 | BS73: 72
AL74: 19.31 | AM74: 77 | AN74: 19.31 | AO74: 77 | BH74: 19.31 | BI74: 77 | BJ74: 19.31 | BK74: 77 | BL74: 20.69 | BM74: 88 | BN74: 19.31 | BO74: 77 | BP74: 19.31 | BQ74: 77 | BR74: 19.31 | BS74: 77
AL75: 19.37 | AM75: 77 | AN75: 19.37 | AO75: 77 | BH75: 19.37 | BI75: 77 | BJ75: 19.37 | BK75: 77 | BL75: 22.04 | BM75: 88 | BN75: 19.37 | BO75: 77 | BP75: 19.37 | BQ75: 77 | BR75: 19.37 | BS75: 77
AL76: 19.37 | AM76: 80 | AN76: 19.37 | AO76: 80 | BH76: 19.37 | BI76: 80 | BJ76: 19.37 | BK76: 80 | BL76: 22.04 | BM76: 95 | BN76: 19.37 | BO76: 80 | BP76: 19.37 | BQ76: 80 | BR76: 19.37 | BS76: 80
AL77: 20.67 | AM77: 80 | AN77: 20.67 | AO77: 80 | BH77: 20.67 | BI77: 80 | BJ77: 20.67 | BK77: 80 | BL77: 24.59 | BM77: 95 | BN77: 20.67 | BO77: 80 | BP77: 20.67 | BQ77: 80 | BR77: 20.67 | BS77: 80
AL78: 20.67 | AM78: 86 | AN78: 20.67 | AO78: 86 | BH78: 20.67 | BI78: 86 | BJ78: 20.67 | BK78: 86 | BL78: 24.59 | BM78: 100 | BN78: 20.67 | BO78: 86 | BP78: 20.67 | BQ78: 86 | BR78: 20.67 | BS78: 86
AL79: 20.72 | AM79: 86 | AN79: 20.72 | AO79: 86 | BH79: 20.72 | BI79: 86 | BJ79: 20.72 | BK79: 86 | BN79: 20.72 | BO79: 86 | BP79: 20.72 | BQ79: 86 | BR79: 20.72 | BS79: 86
AL80: 20.72 | AM80: 88 | AN80: 20.72 | AO80: 88 | BH80: 20.72 | BI80: 88 | BJ80: 20.72 | BK80: 88 | BN80: 20.72 | BO80: 88 | BP80: 20.72 | BQ80: 88 | BR80: 20.72 | BS80: 88
AL81: 22.07 | AM81: 88 | AN81: 22.07 | AO81: 88 | BH81: 22.07 | BI81: 88 | BJ81: 22.07 | BK81: 88 | BN81: 22.07 | BO81: 88 | BP81: 22.07 | BQ81: 88 | BR81: 22.07 | BS81: 88
AL82: 22.07 | AM82: 95 | AN82: 22.07 | AO82: 95 | BH82: 22.07 | BI82: 95 | BJ82: 22.07 | BK82: 95 | BN82: 22.07 | BO82: 95 | BP82: 22.07 | BQ82: 95 | BR82: 22.07 | BS82: 95
AL83: 24.62 | AM83: 95 | AN83: 24.62 | AO83: 95 | BH83: 24.62 | BI83: 95 | BJ83: 24.62 | BK83: 95 | BN83: 24.62 | BO83: 95 | BP83: 24.62 | BQ83: 95 | BR83: 24.62 | BS83: 95
AL84: 24.62 | AM84: 100 | AN84: 24.62 | AO84: 100 | BH84: 24.62 | BI84: 100 | BJ84: 24.62 | BK84: 100 | BN84: 24.62 | BO84: 100 | BP84: 24.62 | BQ84: 100 | BR84: 24.62 | BS84: 100

Sheet Kritická (hidden)
A1: 0 | B1: 0 | R1: kritická | T1: 1 | V1: 2 | X1: 3 | Z1: 4 | AB1: 5 | AD1: 6 | AF1: 7 | AH1: 8 | AJ1: 9 | AL1: 10 | AN1: 11 | AP1: 12 | AR1: 13 | AT1: 14 | AV1: 15
B2: rázvor | C2: zaťaženie | F2: x | G2: m | I2: x | J2: m | L2: x | M2: m | R2: x | S2: m | T2: x | U2: m | V2: x | W2: m | X2: x | Y2: m | Z2: x | AA2: m | AB2: x | AC2: m | AD2: x | AE2: m | AF2: x | AG2: m | AH2: x | AI2: m | AJ2: x | AK2: m | AL2: x | AM2: m | AN2: x | AO2: m | AP2: x | AQ2: m | AR2: x | AS2: m | AT2: x | AU2: m | AV2: x | AW2: m
A3: 1 | B3: 0 | C3: 10.85 | F3: 0 | G3: 10.85 | I3: 0 | J3: =_xlfn.MAXIFS(G3:G17,F3:F17,0) -> 12 | L3: 0 | M3: 12 | O3: =IF(L3="","",L3) -> 0 | P3: =IF(M3="","",M3) -> 12 | R3: 0 | S3: 12 | T3: 0 | U3: 10.85 | V3: 0 | W3: 11.4 | X3: 0 | Y3: 10.36 | Z3: 0 | AA3: 9 | AB3: 0 | AC3: 12 | AD3: 0 | AE3: 9 | AF3: 0 | AG3: 10 | AH3: 0 | AI3: 8 | AJ3: 0 | AK3: 8 | AL3: 0 | AM3: 10 | AN3: 0 | AO3: 9.6 | AP3: 0 | AQ3: 10 | AR3: 0 | AS3: 8 | AT3: 0 | AU3: 9.5 | AV3: 1 | AW3: 1
A4: 2 | B4: 1.31 | C4: 10.85 | F4: 0 | G4: 11.4 | I4: =IF($G4>J3,F4,"") ->  | J4: =IF($G4>J3,G4,"") ->  | L4: 0 | M4: 12 | O4: =IF(L4="","",L4) -> 0 | P4: =IF(M4="","",M3) -> 12 | R4: 0 | S4: 12 | T4: 1.31 | U4: 10.85 | V4: 1.36 | W4: 11.4 | X4: 1.4 | Y4: 10.36 | Z4: 1.35 | AA4: 9 | AB4: 1.6 | AC4: 12 | AD4: 1.35 | AE4: 9 | AF4: 1.41 | AG4: 10 | AH4: 1.36 | AI4: 8 | AJ4: 1.36 | AK4: 8 | AL4: 1.33 | AM4: 10 | AN4: 1.32 | AO4: 9.6 | AP4: 1.37 | AQ4: 10 | AR4: 1.35 | AS4: 8 | AT4: 1.36 | AU4: 9.5 | AV4: 1 | AW4: 1
A5: 3 | B5: 1.31 | C5: 20.8 | F5: 0 | G5: 10.36 | I5: =IF($G5>MAX($G$3:$G4),F5,"") ->  | J5: =IF($G5>MAX($G$3:$G4),G5,"") ->  | L5: 1.31 | M5: 20.8 | O5: =IF(L4="","",L4) -> 0 | P5: =IF(M4="","",M4) -> 12 | R5: 0 | S5: 12 | T5: 1.31 | U5: 20.8 | V5: 1.36 | W5: 22.8 | X5: 1.4 | Y5: 20.72 | Z5: 1.35 | AA5: 15 | AB5: 1.6 | AC5: 24 | AD5: 1.35 | AE5: 15 | AF5: 1.41 | AG5: 20 | AH5: 1.36 | AI5: 15.5 | AJ5: 1.36 | AK5: 16 | AL5: 1.33 | AM5: 17 | AN5: 1.32 | AO5: 17.5 | AP5: 1.37 | AQ5: 18 | AR5: 1.35 | AS5: 16 | AT5: 1.36 | AU5: 19 | AV5: 0 | AW5: 10.85
A6: 4 | B6: 1.35 | C6: 20.8 | F6: 0 | G6: 9 | I6: =IF($G6>MAX($G$3:$G5),F6,"") ->  | J6: =IF($G6>MAX($G$3:$G5),G6,"") ->  | L6: 1.35 | M6: 21.7 | O6: =IF(L5="","",L5) -> 1.31 | P6: =IF(M5="","",M4) -> 12 | R6: 1.31 | S6: 12 | T6: 1.35 | U6: 20.8 | V6: 2.72 | W6: 22.8 | X6: 2.8 | Y6: 20.72 | Z6: 1.36 | AA6: 15 | AB6: 3.2 | AC6: 24 | AD6: 1.36 | AE6: 15 | AF6: 2.82 | AG6: 20 | AH6: 2.72 | AI6: 15.5 | AJ6: 2.72 | AK6: 16 | AL6: 2.72 | AM6: 17 | AN6: 1.36 | AO6: 17.5 | AP6: 3.1 | AQ6: 18 | AR6: 2.7 | AS6: 16 | AT6: 2.72 | AU6: 19 | AV6: 1.31 | AW6: 10.85
A7: 5 | B7: 1.35 | C7: 21.7 | F7: 0 | G7: 12 | I7: =IF($G7>MAX($G$3:$G6),F7,"") -> 0 | J7: =IF($G7>MAX($G$3:$G6),G7,"") -> 12 | L7: 1.36 | M7: 22.8 | O7: =IF(L5="","",L5) -> 1.31 | P7: =IF(M5="","",M5) -> 20.8 | R7: 1.31 | S7: 20.8 | T7: 1.35 | U7: 21.7 | V7: 2.72 | W7: 34.2 | X7: 2.8 | Y7: 31.08 | Z7: 1.36 | AA7: 18 | AB7: 3.2 | AC7: 36 | AD7: 1.36 | AE7: 18 | AF7: 2.82 | AG7: 30 | AH7: 2.72 | AI7: 22.74 | AJ7: 2.72 | AK7: 24 | AL7: 2.72 | AM7: 28 | AN7: 1.36 | AO7: 19 | AP7: 3.1 | AQ7: 28.5 | AR7: 2.7 | AS7: 23 | AT7: 2.72 | AU7: 28.5 | AV7: 1.31 | AW7: 20.8
A8: 6 | B8: 2.62 | C8: 21.7 | F8: 0 | G8: 9 | I8: =IF($G8>MAX($G$3:$G7),F8,"") ->  | J8: =IF($G8>MAX($G$3:$G7),G8,"") ->  | L8: 1.4 | M8: 23 | O8: =IF(L6="","",L6) -> 1.35 | P8: =IF(M6="","",M5) -> 20.8 | R8: 1.35 | S8: 20.8 | T8: 2.62 | U8: 21.7 | V8: 4.08 | W8: 34.2 | X8: 4.2 | Y8: 31.08 | Z8: 2.7 | AA8: 18 | AB8: 4.8 | AC8: 36 | AD8: 2.72 | AE8: 18 | AF8: 4.23 | AG8: 30 | AH8: 4.08 | AI8: 22.74 | AJ8: 4.08 | AK8: 24 | AL8: 13.89 | AM8: 28 | AN8: 1.81 | AO8: 19 | AP8: 4.65 | AQ8: 28.5 | AR8: 4.5 | AS8: 23 | AT8: 4.08 | AU8: 28.5 | AV8: 1.35 | AW8: 20.8
A9: 7 | B9: 2.62 | C9: 31.2 | F9: 0 | G9: 10 | I9: =IF($G9>MAX($G$3:$G8),F9,"") ->  | J9: =IF($G9>MAX($G$3:$G8),G9,"") ->  | L9: 1.6 | M9: 24 | O9: =IF(L6="","",L6) -> 1.35 | P9: =IF(M6="","",M6) -> 21.7 | R9: 1.35 | S9: 21.7 | T9: 2.62 | U9: 31.2 | V9: 4.08 | W9: 45.6 | X9: 4.2 | Y9: 41.44 | Z9: 2.7 | AA9: 23 | AB9: 4.8 | AC9: 48 | AD9: 2.72 | AE9: 27 | AF9: 4.23 | AG9: 40 | AH9: 4.08 | AI9: 30.24 | AJ9: 4.08 | AK9: 32 | AL9: 13.89 | AM9: 36 | AN9: 1.81 | AO9: 19.2 | AP9: 4.65 | AQ9: 38 | AR9: 4.5 | AS9: 28 | AT9: 4.08 | AU9: 38 | AV9: 1.35 | AW9: 21.7
A10: 8 | B10: 3.93 | C10: 31.2 | F10: 0 | G10: 8 | I10: =IF($G10>MAX($G$3:$G9),F10,"") ->  | J10: =IF($G10>MAX($G$3:$G9),G10,"") ->  | L10: 2.62 | M10: 31.2 | O10: =IF(L7="","",L7) -> 1.36 | P10: =IF(M7="","",M6) -> 21.7 | R10: 1.36 | S10: 21.7 | T10: 3.93 | U10: 31.2 | V10: 5.44 | W10: 45.6 | X10: 5.6 | Y10: 41.44 | Z10: 2.72 | AA10: 23 | AB10: 6.4 | AC10: 48 | AD10: 4.08 | AE10: 27 | AF10: 5.64 | AG10: 40 | AH10: 6.52 | AI10: 30.24 | AJ10: 5.44 | AK10: 32 | AL10: 13.92 | AM10: 36 | AN10: 2.68 | AO10: 19.2 | AP10: 6.2 | AQ10: 38 | AR10: 5.8 | AS10: 28 | AT10: 5.44 | AU10: 38 | AV10: 2.62 | AW10: 21.7
A11: 9 | B11: 3.93 | C11: 41.6 | F11: 0 | G11: 8 | I11: =IF($G11>MAX($G$3:$G10),F11,"") ->  | J11: =IF($G11>MAX($G$3:$G10),G11,"") ->  | L11: 2.72 | M11: 34.2 | O11: =IF(L7="","",L7) -> 1.36 | P11: =IF(M7="","",M7) -> 22.8 | R11: 1.36 | S11: 22.8 | T11: 3.93 | U11: 41.6 | V11: 5.44 | W11: 57 | X11: 5.6 | Y11: 51.8 | Z11: 2.72 | AA11: 27 | AB11: 6.4 | AC11: 60 | AD11: 4.08 | AE11: 36 | AF11: 5.64 | AG11: 50 | AH11: 6.52 | AI11: 36.5 | AJ11: 5.44 | AK11: 40 | AL11: 13.92 | AM11: 37 | AN11: 2.68 | AO11: 27 | AP11: 6.2 | AQ11: 47.5 | AR11: 5.8 | AS11: 30 | AT11: 5.44 | AU11: 47.5 | AV11: 2.62 | AW11: 31.2
A12: 10 | B12: 5.24 | C12: 41.6 | F12: 0 | G12: 10 | I12: =IF($G12>MAX($G$3:$G11),F12,"") ->  | J12: =IF($G12>MAX($G$3:$G11),G12,"") ->  | L12: 3.2 | M12: 36 | O12: =IF(L8="","",L8) -> 1.4 | P12: =IF(M8="","",M7) -> 22.8 | R12: 1.4 | S12: 22.8 | T12: 5.24 | U12: 41.6 | V12: 15.94 | W12: 57 | X12: 7 | Y12: 51.8 | Z12: 4.08 | AA12: 27 | AB12: 8 | AC12: 60 | AD12: 5.44 | AE12: 36 | AF12: 7.05 | AG12: 50 | AH12: 7.79 | AI12: 36.5 | AJ12: 33.44 | AK12: 40 | AL12: 15.25 | AM12: 37 | AN12: 3.62 | AO12: 27 | AP12: 7.75 | AQ12: 47.5 | AR12: 6 | AS12: 30 | AT12: 9.94 | AU12: 47.5 | AV12: 3.93 | AW12: 31.2
A13: 11 | B13: 5.24 | C13: 52 | F13: 0 | G13: 9.6 | I13: =IF($G13>MAX($G$3:$G12),F13,"") ->  | J13: =IF($G13>MAX($G$3:$G12),G13,"") ->  | L13: 3.93 | M13: 41.6 | O13: =IF(L8="","",L8) -> 1.4 | P13: =IF(M8="","",M8) -> 23 | R13: 1.4 | S13: 23 | T13: 5.24 | U13: 52 | V13: 15.94 | W13: 68.4 | X13: 7 | Y13: 62.16 | Z13: 4.08 | AA13: 36 | AB13: 8 | AC13: 72 | AD13: 5.44 | AE13: 45 | AF13: 7.05 | AG13: 60 | AH13: 7.79 | AI13: 37.5 | AJ13: 33.44 | AK13: 48 | AL13: 15.25 | AM13: 45 | AN13: 3.62 | AO13: 28.8 | AP13: 7.75 | AQ13: 57 | AR13: 6 | AS13: 35 | AT13: 9.94 | AU13: 57 | AV13: 3.93 | AW13: 41.6
A14: 12 | B14: 9.57 | C14: 52 | F14: 0 | G14: 10 | I14: =IF($G14>MAX($G$3:$G13),F14,"") ->  | J14: =IF($G14>MAX($G$3:$G13),G14,"") ->  | L14: 4.08 | M14: 45.6 | O14: =IF(L9="","",L9) -> 1.6 | P14: =IF(M9="","",M8) -> 23 | R14: 1.6 | S14: 23 | T14: 9.57 | U14: 52 | V14: 17.3 | W14: 68.4 | X14: 9.3 | Y14: 62.16 | Z14: 5.48 | AA14: 36 | AB14: 10.8 | AC14: 72 | AD14: 6.8 | AE14: 45 | AF14: 8.46 | AG14: 60 | AH14: 9.15 | AI14: 37.5 | AJ14: 34.8 | AK14: 48 | AL14: 17.65 | AM14: 45 | AN14: 4.96 | AO14: 28.8 | AP14: 9.3 | AQ14: 57 | AR14: 7.3 | AS14: 35 | AT14: 11.34 | AU14: 57 | AV14: 5.24 | AW14: 41.6
A15: 13 | B15: 9.57 | C15: 52.9 | F15: 0 | G15: 8 | I15: =IF($G15>MAX($G$3:$G14),F15,"") ->  | J15: =IF($G15>MAX($G$3:$G14),G15,"") ->  | L15: 4.8 | M15: 48 | O15: =IF(L9="","",L9) -> 1.6 | P15: =IF(M9="","",M9) -> 24 | R15: 1.6 | S15: 24 | T15: 9.57 | U15: 52.9 | V15: 17.3 | W15: 79.8 | X15: 9.3 | Y15: 69.71 | Z15: 5.48 | AA15: 45 | AB15: 10.8 | AC15: 84 | AD15: 6.8 | AE15: 54 | AF15: 8.46 | AG15: 70 | AH15: 9.15 | AI15: 44.5 | AJ15: 34.8 | AK15: 56 | AL15: 17.65 | AM15: 51 | AN15: 4.96 | AO15: 34 | AP15: 9.3 | AQ15: 66.5 | AR15: 7.3 | AS15: 37 | AT15: 11.34 | AU15: 66.5 | AV15: 5.24 | AW15: 52
A16: 14 | B16: 10.84 | C16: 52.9 | F16: 0 | G16: 9.5 | I16: =IF($G16>MAX($G$3:$G15),F16,"") ->  | J16: =IF($G16>MAX($G$3:$G15),G16,"") ->  | L16: 5.24 | M16: 52 | O16: =IF(L10="","",L10) -> 2.62 | P16: =IF(M10="","",M9) -> 24 | R16: 2.62 | S16: 24 | T16: 10.84 | U16: 52.9 | V16: 18.66 | W16: 79.8 | X16: 10.75 | Y16: 69.71 | Z16: 9.12 | AA16: 45 | AB16: 12.4 | AC16: 84 | AD16: 14.27 | AE16: 54 | AF16: 9.87 | AG16: 70 | AH16: 13.24 | AI16: 44.5 | AJ16: 36.16 | AK16: 56 | AN16: 5.43 | AO16: 34 | AP16: 10.85 | AQ16: 66.5 | AR16: 7.5 | AS16: 37 | AT16: 14.94 | AU16: 66.5 | AV16: 9.57 | AW16: 52
A17: 15 | B17: 10.84 | C17: 62.85 | F17: 0 | G17: 11.5 | I17: =IF($G17>MAX($G$3:$G16),F17,"") ->  | J17: =IF($G17>MAX($G$3:$G16),G17,"") ->  | L17: 5.44 | M17: 57 | O17: =IF(L10="","",L10) -> 2.62 | P17: =IF(M10="","",M10) -> 31.2 | R17: 2.62 | S17: 31.2 | T17: 10.84 | U17: 62.85 | V17: 18.66 | W17: 91.2 | X17: 10.75 | Y17: 77.26 | Z17: 9.12 | AA17: 50 | AB17: 12.4 | AC17: 96 | AD17: 14.27 | AE17: 63 | AF17: 9.87 | AG17: 80 | AH17: 13.24 | AI17: 44.74 | AJ17: 36.16 | AK17: 64 | AN17: 5.43 | AO17: 38.4 | AP17: 10.85 | AQ17: 76 | AR17: 7.5 | AS17: 42 | AT17: 14.94 | AU17: 73.15 | AV17: 9.57 | AW17: 52.9
A18: 16 | B18: 10.88 | C18: 62.85 | F18: 1.31 | G18: 10.85 | I18: =IF($G18>MAX($G$3:$G17),F18,"") ->  | J18: =IF($G18>MAX($G$3:$G17),G18,"") ->  | L18: 6.4 | M18: 60 | O18: =IF(L11="","",L11) -> 2.72 | P18: =IF(M11="","",M10) -> 31.2 | R18: 2.72 | S18: 31.2 | T18: 10.88 | U18: 62.85 | V18: 21.26 | W18: 91.2 | X18: 13.62 | Y18: 77.26 | Z18: 11.67 | AA18: 50 | AD18: 15.63 | AE18: 63 | AF18: 14.87 | AG18: 80 | AH18: 15.48 | AI18: 44.74 | AJ18: 38.75 | AK18: 64 | AN18: 7.24 | AO18: 38.4 | AP18: 12.8 | AQ18: 76 | AR18: 8.8 | AS18: 42 | AV18: 10.84 | AW18: 52.9
A19: 17 | B19: 10.88 | C19: 63.3 | F19: 1.31 | G19: 20.8 | I19: =IF($G19>MAX($G$3:$G18),F19,"") -> 1.31 | J19: =IF($G19>MAX($G$3:$G18),G19,"") -> 20.8 | L19: 7 | M19: 62.16 | O19: =IF(L11="","",L11) -> 2.72 | P19: =IF(M11="","",M11) -> 34.2 | R19: 2.72 | S19: 34.2 | T19: 10.88 | U19: 63.3 | V19: 21.26 | W19: 99 | X19: 13.62 | Y19: 84.81 | Z19: 11.67 | AA19: 55 | AD19: 15.63 | AE19: 72 | AF19: 14.87 | AG19: 90 | AH19: 15.48 | AI19: 51.74 | AJ19: 38.75 | AK19: 72 | AN19: 7.24 | AO19: 48 | AP19: 12.8 | AQ19: 76.5 | AR19: 8.8 | AS19: 44 | AV19: 10.84 | AW19: 62.85
A20: 18 | B20: 12.19 | C20: 63.3 | F20: 1.32 | G20: 9.6 | I20: =IF($G20>MAX($G$3:$G19),F20,"") ->  | J20: =IF($G20>MAX($G$3:$G19),G20,"") ->  | L20: 8 | M20: 72 | O20: =IF(L12="","",L12) -> 3.2 | P20: =IF(M12="","",M11) -> 34.2 | R20: 3.2 | S20: 34.2 | T20: 12.19 | U20: 63.3 | X20: 15.27 | Y20: 84.81 | Z20: 14.27 | AA20: 55 | AD20: 16.99 | AE20: 72 | AF20: 16.28 | AG20: 90 | AH20: 16.94 | AI20: 51.74 | AN20: 13.44 | AO20: 48 | AP20: 14.17 | AQ20: 76.5 | AR20: 9 | AS20: 44 | AV20: 10.88 | AW20: 62.85
A21: 19 | B21: 12.19 | C21: 73.7 | F21: 1.32 | G21: 17.5 | I21: =IF($G21>MAX($G$3:$G20),F21,"") ->  | J21: =IF($G21>MAX($G$3:$G20),G21,"") ->  | L21: 9.87 | M21: 80 | O21: =IF(L12="","",L12) -> 3.2 | P21: =IF(M12="","",M12) -> 36 | R21: 3.2 | S21: 36 | T21: 12.19 | U21: 73.7 | X21: 15.27 | Y21: 92.36 | Z21: 14.27 | AA21: 63 | AD21: 16.99 | AE21: 80 | AF21: 16.28 | AG21: 100 | AH21: 16.94 | AI21: 59.24 | AN21: 13.44 | AO21: 55.8 | AP21: 14.17 | AQ21: 84.5 | AR21: 9 | AS21: 49 | AV21: 10.88 | AW21: 63.3
A22: 20 | B22: 15.64 | C22: 73.7 | F22: 1.33 | G22: 10 | I22: =IF($G22>MAX($G$3:$G21),F22,"") ->  | J22: =IF($G22>MAX($G$3:$G21),G22,"") ->  | L22: 10.8 | M22: 84 | O22: =IF(L13="","",L13) -> 3.93 | P22: =IF(M13="","",M12) -> 36 | R22: 3.93 | S22: 36 | T22: 15.64 | U22: 73.7 | Z22: 15.67 | AA22: 63 | AD22: 20.68 | AE22: 80 | AF22: 17.73 | AG22: 100 | AH22: 18.31 | AI22: 59.24 | AN22: 14.38 | AO22: 55.8 | AP22: 14.35 | AQ22: 84.5 | AR22: 10.3 | AS22: 49 | AV22: 12.19 | AW22: 63.3
A23: 21 | B23: 15.64 | C23: 83 | F23: 1.33 | G23: 17 | I23: =IF($G23>MAX($G$3:$G22),F23,"") ->  | J23: =IF($G23>MAX($G$3:$G22),G23,"") ->  | L23: 12.4 | M23: 96 | O23: =IF(L13="","",L13) -> 3.93 | P23: =IF(M13="","",M13) -> 41.6 | R23: 3.93 | S23: 41.6 | T23: 15.64 | U23: 83 | Z23: 15.67 | AA23: 72 | AD23: 20.68 | AE23: 86 | AF23: 17.73 | AG23: 107.5 | AH23: 18.31 | AI23: 60 | AN23: 14.38 | AO23: 57.5 | AP23: 14.35 | AQ23: 86 | AR23: 10.3 | AS23: 51 | AV23: 12.19 | AW23: 73.7
A24: 22 | F24: 1.35 | G24: 20.8 | I24: =IF($G24>MAX($G$3:$G23),F24,"") ->  | J24: =IF($G24>MAX($G$3:$G23),G24,"") ->  | L24: 16.28 | M24: 100 | O24: =IF(L14="","",L14) -> 4.08 | P24: =IF(M14="","",M13) -> 41.6 | R24: 4.08 | S24: 41.6 | Z24: 19.31 | AA24: 72 | AD24: 20.69 | AE24: 86 | AF24: 20.33 | AG24: 107.5 | AH24: 18.4 | AI24: 60 | AN24: 15.25 | AO24: 57.5 | AP24: 15.72 | AQ24: 86 | AR24: 10.5 | AS24: 51 | AV24: 15.64 | AW24: 73.7
A25: 23 | F25: 1.35 | G25: 21.7 | I25: =IF($G25>MAX($G$3:$G24),F25,"") -> 1.35 | J25: =IF($G25>MAX($G$3:$G24),G25,"") -> 21.7 | L25: 17.73 | M25: 107.5 | O25: =IF(L14="","",L14) -> 4.08 | P25: =IF(M14="","",M14) -> 45.6 | R25: 4.08 | S25: 45.6 | Z25: 19.31 | AA25: 77 | AD25: 20.69 | AE25: 88 | AF25: 20.33 | AG25: 115 | AH25: 18.4 | AI25: 66.74 | AN25: 15.25 | AO25: 65.4 | AP25: 15.72 | AQ25: 94 | AR25: 10.5 | AS25: 56 | AV25: 15.64 | AW25: 83
A26: 24 | F26: 1.35 | G26: 9 | I26: =IF($G26>MAX($G$3:$G25),F26,"") ->  | J26: =IF($G26>MAX($G$3:$G25),G26,"") ->  | L26: 20.33 | M26: 115 | O26: =IF(L15="","",L15) -> 4.8 | P26: =IF(M15="","",M14) -> 45.6 | R26: 4.8 | S26: 45.6 | Z26: 19.37 | AA26: 77 | AD26: 22.04 | AE26: 88 | AH26: 19.67 | AI26: 66.74 | AN26: 15.74 | AO26: 65.4 | AP26: 19.12 | AQ26: 94 | AR26: 11.8 | AS26: 56
A27: 25 | F27: 1.35 | G27: 15 | I27: =IF($G27>MAX($G$3:$G26),F27,"") ->  | J27: =IF($G27>MAX($G$3:$G26),G27,"") ->  | O27: =IF(L15="","",L15) -> 4.8 | P27: =IF(M15="","",M15) -> 48 | R27: 4.8 | S27: 48 | Z27: 19.37 | AA27: 80 | AD27: 22.04 | AE27: 95 | AH27: 19.67 | AI27: 67 | AN27: 15.74 | AO27: 67 | AP27: 19.12 | AQ27: 99 | AR27: 11.8 | AS27: 58
A28: 26 | F28: 1.35 | G28: 9 | I28: =IF($G28>MAX($G$3:$G27),F28,"") ->  | J28: =IF($G28>MAX($G$3:$G27),G28,"") ->  | O28: =IF(L16="","",L16) -> 5.24 | P28: =IF(M16="","",M15) -> 48 | R28: 5.24 | S28: 48 | Z28: 20.67 | AA28: 80 | AD28: 24.59 | AE28: 95 | AH28: 21.03 | AI28: 67 | AN28: 17.06 | AO28: 67 | AR28: 12 | AS28: 58
A29: 27 | F29: 1.35 | G29: 15 | I29: =IF($G29>MAX($G$3:$G28),F29,"") ->  | J29: =IF($G29>MAX($G$3:$G28),G29,"") ->  | O29: =IF(L16="","",L16) -> 5.24 | P29: =IF(M16="","",M16) -> 52 | R29: 5.24 | S29: 52 | Z29: 20.67 | AA29: 86 | AD29: 24.59 | AE29: 100 | AH29: 21.03 | AI29: 74.74 | AN29: 17.06 | AO29: 75 | AR29: 12 | AS29: 63
A30: 28 | F30: 1.35 | G30: 8 | I30: =IF($G30>MAX($G$3:$G29),F30,"") ->  | J30: =IF($G30>MAX($G$3:$G29),G30,"") ->  | O30: =IF(L17="","",L17) -> 5.44 | P30: =IF(M17="","",M16) -> 52 | R30: 5.44 | S30: 52 | Z30: 20.72 | AA30: 86 | AN30: 19.34 | AO30: 75 | AR30: 13.3 | AS30: 63
A31: 0 | F31: 1.35 | G31: 16 | I31: =IF($G31>MAX($G$3:$G30),F31,"") ->  | J31: =IF($G31>MAX($G$3:$G30),G31,"") ->  | O31: =IF(L17="","",L17) -> 5.44 | P31: =IF(M17="","",M17) -> 57 | R31: 5.44 | S31: 57 | Z31: 20.72 | AA31: 88 | AN31: 19.34 | AO31: 82 | AR31: 13.3 | AS31: 65
A32: 30 | F32: 1.36 | G32: 11.4 | I32: =IF($G32>MAX($G$3:$G31),F32,"") ->  | J32: =IF($G32>MAX($G$3:$G31),G32,"") ->  | O32: =IF(L18="","",L18) -> 6.4 | P32: =IF(M18="","",M17) -> 57 | R32: 6.4 | S32: 57 | Z32: 22.07 | AA32: 88 | AR32: 13.5 | AS32: 65
A33: 1 | B33: 0 | C33: 11.4 | F33: 1.36 | G33: 22.8 | I33: =IF($G33>MAX($G$3:$G32),F33,"") -> 1.36 | J33: =IF($G33>MAX($G$3:$G32),G33,"") -> 22.8 | O33: =IF(L18="","",L18) -> 6.4 | P33: =IF(M18="","",M18) -> 60 | R33: 6.4 | S33: 60 | Z33: 22.07 | AA33: 95 | AR33: 13.5 | AS33: 70 | AV33: 0 | AW33: 11.4
A34: 2 | B34: 1.36 | C34: 11.4 | F34: 1.36 | G34: 15 | I34: =IF($G34>MAX($G$3:$G33),F34,"") ->  | J34: =IF($G34>MAX($G$3:$G33),G34,"") ->  | O34: =IF(L19="","",L19) -> 7 | P34: =IF(M19="","",M18) -> 60 | R34: 7 | S34: 60 | Z34: 24.62 | AA34: 95 | AR34: 14.8 | AS34: 70 | AV34: 1.36 | AW34: 11.4
A35: 3 | B35: 1.36 | C35: 22.8 | F35: 1.36 | G35: 18 | I35: =IF($G35>MAX($G$3:$G34),F35,"") ->  | J35: =IF($G35>MAX($G$3:$G34),G35,"") ->  | O35: =IF(L19="","",L19) -> 7 | P35: =IF(M19="","",M19) -> 62.16 | R35: 7 | S35: 62.16 | Z35: 24.62 | AA35: 100 | AR35: 14.8 | AS35: 72 | AV35: 1.36 | AW35: 22.8
A36: 4 | B36: 2.72 | C36: 22.8 | F36: 1.36 | G36: 15 | I36: =IF($G36>MAX($G$3:$G35),F36,"") ->  | J36: =IF($G36>MAX($G$3:$G35),G36,"") ->  | O36: =IF(L20="","",L20) -> 8 | P36: =IF(M20="","",M19) -> 62.16 | R36: 8 | S36: 62.16 | AR36: 16.3 | AS36: 72 | AV36: 2.72 | AW36: 22.8
A37: 5 | B37: 2.72 | C37: 34.2 | F37: 1.36 | G37: 18 | I37: =IF($G37>MAX($G$3:$G36),F37,"") ->  | J37: =IF($G37>MAX($G$3:$G36),G37,"") ->  | O37: =IF(L20="","",L20) -> 8 | P37: =IF(M20="","",M20) -> 72 | R37: 8 | S37: 72 | AR37: 16.3 | AS37: 79 | AV37: 2.72 | AW37: 34.2
A38: 6 | B38: 4.08 | C38: 34.2 | F38: 1.36 | G38: 8 | I38: =IF($G38>MAX($G$3:$G37),F38,"") ->  | J38: =IF($G38>MAX($G$3:$G37),G38,"") ->  | O38: =IF(L21="","",L21) -> 9.87 | P38: =IF(M21="","",M20) -> 72 | R38: 9.87 | S38: 72 | AR38: 17.8 | AS38: 79 | AV38: 4.08 | AW38: 34.2
A39: 7 | B39: 4.08 | C39: 45.6 | F39: 1.36 | G39: 15.5 | I39: =IF($G39>MAX($G$3:$G38),F39,"") ->  | J39: =IF($G39>MAX($G$3:$G38),G39,"") ->  | O39: =IF(L21="","",L21) -> 9.87 | P39: =IF(M21="","",M21) -> 80 | R39: 9.87 | S39: 80 | AR39: 17.8 | AS39: 86 | AV39: 4.08 | AW39: 45.6
A40: 8 | B40: 5.44 | C40: 45.6 | F40: 1.36 | G40: 8 | I40: =IF($G40>MAX($G$3:$G39),F40,"") ->  | J40: =IF($G40>MAX($G$3:$G39),G40,"") ->  | O40: =IF(L22="","",L22) -> 10.8 | P40: =IF(M22="","",M21) -> 80 | R40: 10.8 | S40: 80 | AR40: 19.3 | AS40: 86 | AV40: 5.44 | AW40: 45.6
A41: 9 | B41: 5.44 | C41: 57 | F41: 1.36 | G41: 16 | I41: =IF($G41>MAX($G$3:$G40),F41,"") ->  | J41: =IF($G41>MAX($G$3:$G40),G41,"") ->  | O41: =IF(L22="","",L22) -> 10.8 | P41: =IF(M22="","",M22) -> 84 | R41: 10.8 | S41: 84 | AR41: 19.3 | AS41: 93 | AV41: 5.44 | AW41: 57
A42: 10 | B42: 15.94 | C42: 57 | F42: 1.36 | G42: 17.5 | I42: =IF($G42>MAX($G$3:$G41),F42,"") ->  | J42: =IF($G42>MAX($G$3:$G41),G42,"") ->  | O42: =IF(L23="","",L23) -> 12.4 | P42: =IF(M23="","",M22) -> 84 | R42: 12.4 | S42: 84 | AR42: 21.85 | AS42: 93 | AV42: 15.94 | AW42: 57
A43: 11 | B43: 15.94 | C43: 68.4 | F43: 1.36 | G43: 19 | I43: =IF($G43>MAX($G$3:$G42),F43,"") ->  | J43: =IF($G43>MAX($G$3:$G42),G43,"") ->  | O43: =IF(L23="","",L23) -> 12.4 | P43: =IF(M23="","",M23) -> 96 | R43: 12.4 | S43: 96 | AR43: 21.85 | AS43: 98 | AV43: 15.94 | AW43: 68.4
A44: 12 | B44: 17.3 | C44: 68.4 | F44: 1.36 | G44: 9.5 | I44: =IF($G44>MAX($G$3:$G43),F44,"") ->  | J44: =IF($G44>MAX($G$3:$G43),G44,"") ->  | O44: =IF(L24="","",L24) -> 16.28 | P44: =IF(M24="","",M23) -> 96 | R44: 16.28 | S44: 96 | AV44: 17.3 | AW44: 68.4
A45: 13 | B45: 17.3 | C45: 79.8 | F45: 1.36 | G45: 19 | I45: =IF($G45>MAX($G$3:$G44),F45,"") ->  | J45: =IF($G45>MAX($G$3:$G44),G45,"") ->  | O45: =IF(L24="","",L24) -> 16.28 | P45: =IF(M24="","",M24) -> 100 | R45: 16.28 | S45: 100 | AV45: 17.3 | AW45: 79.8
A46: 14 | B46: 18.66 | C46: 79.8 | F46: 1.37 | G46: 10 | I46: =IF($G46>MAX($G$3:$G45),F46,"") ->  | J46: =IF($G46>MAX($G$3:$G45),G46,"") ->  | O46: =IF(L25="","",L25) -> 17.73 | P46: =IF(M25="","",M24) -> 100 | R46: 17.73 | S46: 100 | AV46: 18.66 | AW46: 79.8
A47: 15 | B47: 18.66 | C47: 91.2 | F47: 1.37 | G47: 18 | I47: =IF($G47>MAX($G$3:$G46),F47,"") ->  | J47: =IF($G47>MAX($G$3:$G46),G47,"") ->  | O47: =IF(L25="","",L25) -> 17.73 | P47: =IF(M25="","",M25) -> 107.5 | R47: 17.73 | S47: 107.5 | AV47: 18.66 | AW47: 91.2
A48: 16 | B48: 21.26 | C48: 91.2 | F48: 1.4 | G48: 10.36 | I48: =IF($G48>MAX($G$3:$G47),F48,"") ->  | J48: =IF($G48>MAX($G$3:$G47),G48,"") ->  | O48: =IF(L26="","",L26) -> 20.33 | P48: =IF(M26="","",M25) -> 107.5 | R48: 20.33 | S48: 107.5 | AV48: 21.26 | AW48: 91.2
A49: 17 | B49: 21.26 | C49: 99 | F49: 1.4 | G49: 20.72 | I49: =IF($G49>MAX($G$3:$G48),F49,"") ->  | J49: =IF($G49>MAX($G$3:$G48),G49,"") ->  | O49: =IF(L26="","",L26) -> 20.33 | P49: =IF(M26="","",M26) -> 115 | R49: 20.33 | S49: 115 | AV49: 21.26 | AW49: 99
A50: 18 | F50: 1.4 | G50: 11.5 | I50: =IF($G50>MAX($G$3:$G49),F50,"") ->  | J50: =IF($G50>MAX($G$3:$G49),G50,"") ->  | O50: =IF(L27="","",L27) ->  | P50: =IF(M27="","",M26) -> 
A51: 19 | F51: 1.4 | G51: 23 | I51: =IF($G51>MAX($G$3:$G50),F51,"") -> 1.4 | J51: =IF($G51>MAX($G$3:$G50),G51,"") -> 23 | O51: =IF(L27="","",L27) ->  | P51: =IF(M27="","",M27) -> 
A52: 20 | F52: 1.41 | G52: 10 | I52: =IF($G52>MAX($G$3:$G51),F52,"") ->  | J52: =IF($G52>MAX($G$3:$G51),G52,"") ->  | O52: =IF(L28="","",L28) ->  | P52: =IF(M28="","",M27) -> 
A53: 21 | F53: 1.41 | G53: 20 | I53: =IF($G53>MAX($G$3:$G52),F53,"") ->  | J53: =IF($G53>MAX($G$3:$G52),G53,"") ->  | O53: =IF(L28="","",L28) ->  | P53: =IF(M28="","",M28) -> 
A54: 22 | F54: 1.6 | G54: 12 | I54: =IF($G54>MAX($G$3:$G53),F54,"") ->  | J54: =IF($G54>MAX($G$3:$G53),G54,"") ->  | O54: =IF(L29="","",L29) ->  | P54: =IF(M29="","",M28) -> 
A55: 23 | F55: 1.6 | G55: 24 | I55: =IF($G55>MAX($G$3:$G54),F55,"") -> 1.6 | J55: =IF($G55>MAX($G$3:$G54),G55,"") -> 24 | O55: =IF(L30="","",L30) ->  | P55: =IF(M30="","",M29) -> 
A56: 24 | F56: 1.81 | G56: 19 | I56: =IF($G56>MAX($G$3:$G55),F56,"") ->  | J56: =IF($G56>MAX($G$3:$G55),G56,"") -> 
A57: 25 | F57: 1.81 | G57: 19.2 | I57: =IF($G57>MAX($G$3:$G56),F57,"") ->  | J57: =IF($G57>MAX($G$3:$G56),G57,"") -> 
A58: 26 | F58: 2.62 | G58: 21.7 | I58: =IF($G58>MAX($G$3:$G57),F58,"") ->  | J58: =IF($G58>MAX($G$3:$G57),G58,"") -> 
A59: 27 | F59: 2.62 | G59: 31.2 | I59: =IF($G59>MAX($G$3:$G58),F59,"") -> 2.62 | J59: =IF($G59>MAX($G$3:$G58),G59,"") -> 31.2
A60: 28 | F60: 2.68 | G60: 19.2 | I60: =IF($G60>MAX($G$3:$G59),F60,"") ->  | J60: =IF($G60>MAX($G$3:$G59),G60,"") -> 
A61: 0 | F61: 2.68 | G61: 27 | I61: =IF($G61>MAX($G$3:$G60),F61,"") ->  | J61: =IF($G61>MAX($G$3:$G60),G61,"") -> 
A62: 30 | F62: 2.7 | G62: 18 | I62: =IF($G62>MAX($G$3:$G61),F62,"") ->  | J62: =IF($G62>MAX($G$3:$G61),G62,"") -> 
A63: 1 | B63: 0 | C63: 10.36 | F63: 2.7 | G63: 23 | I63: =IF($G63>MAX($G$3:$G62),F63,"") ->  | J63: =IF($G63>MAX($G$3:$G62),G63,"") ->  | AV63: 0 | AW63: 10.36
A64: 2 | B64: 1.4 | C64: 10.36 | F64: 2.7 | G64: 16 | I64: =IF($G64>MAX($G$3:$G63),F64,"") ->  | J64: =IF($G64>MAX($G$3:$G63),G64,"") ->  | AV64: 1.4 | AW64: 10.36
A65: 3 | B65: 1.4 | C65: 20.72 | F65: 2.7 | G65: 23 | I65: =IF($G65>MAX($G$3:$G64),F65,"") ->  | J65: =IF($G65>MAX($G$3:$G64),G65,"") ->  | AV65: 1.4 | AW65: 20.72
A66: 4 | B66: 2.8 | C66: 20.72 | F66: 2.72 | G66: 22.8 | I66: =IF($G66>MAX($G$3:$G65),F66,"") ->  | J66: =IF($G66>MAX($G$3:$G65),G66,"") ->  | AV66: 2.8 | AW66: 20.72
A67: 5 | B67: 2.8 | C67: 31.08 | F67: 2.72 | G67: 34.2 | I67: =IF($G67>MAX($G$3:$G66),F67,"") -> 2.72 | J67: =IF($G67>MAX($G$3:$G66),G67,"") -> 34.2 | AV67: 2.8 | AW67: 31.08
A68: 6 | B68: 4.2 | C68: 31.08 | F68: 2.72 | G68: 23 | I68: =IF($G68>MAX($G$3:$G67),F68,"") ->  | J68: =IF($G68>MAX($G$3:$G67),G68,"") ->  | AV68: 4.2 | AW68: 31.08
A69: 7 | B69: 4.2 | C69: 41.44 | F69: 2.72 | G69: 27 | I69: =IF($G69>MAX($G$3:$G68),F69,"") ->  | J69: =IF($G69>MAX($G$3:$G68),G69,"") ->  | AV69: 4.2 | AW69: 41.44
A70: 8 | B70: 5.6 | C70: 41.44 | F70: 2.72 | G70: 18 | I70: =IF($G70>MAX($G$3:$G69),F70,"") ->  | J70: =IF($G70>MAX($G$3:$G69),G70,"") ->  | AV70: 5.6 | AW70: 41.44
A71: 9 | B71: 5.6 | C71: 51.8 | F71: 2.72 | G71: 27 | I71: =IF($G71>MAX($G$3:$G70),F71,"") ->  | J71: =IF($G71>MAX($G$3:$G70),G71,"") ->  | AV71: 5.6 | AW71: 51.8
A72: 10 | B72: 7 | C72: 51.8 | F72: 2.72 | G72: 15.5 | I72: =IF($G72>MAX($G$3:$G71),F72,"") ->  | J72: =IF($G72>MAX($G$3:$G71),G72,"") ->  | AV72: 7 | AW72: 51.8
A73: 11 | B73: 7 | C73: 62.16 | F73: 2.72 | G73: 22.74 | I73: =IF($G73>MAX($G$3:$G72),F73,"") ->  | J73: =IF($G73>MAX($G$3:$G72),G73,"") ->  | AV73: 7 | AW73: 62.16
A74: 12 | B74: 9.3 | C74: 62.16 | F74: 2.72 | G74: 16 | I74: =IF($G74>MAX($G$3:$G73),F74,"") ->  | J74: =IF($G74>MAX($G$3:$G73),G74,"") ->  | AV74: 9.3 | AW74: 62.16
A75: 13 | B75: 9.3 | C75: 69.71 | F75: 2.72 | G75: 24 | I75: =IF($G75>MAX($G$3:$G74),F75,"") ->  | J75: =IF($G75>MAX($G$3:$G74),G75,"") ->  | AV75: 9.3 | AW75: 69.71
A76: 14 | B76: 10.75 | C76: 69.71 | F76: 2.72 | G76: 17 | I76: =IF($G76>MAX($G$3:$G75),F76,"") ->  | J76: =IF($G76>MAX($G$3:$G75),G76,"") ->  | AV76: 10.75 | AW76: 69.71
A77: 15 | B77: 10.75 | C77: 77.26 | F77: 2.72 | G77: 28 | I77: =IF($G77>MAX($G$3:$G76),F77,"") ->  | J77: =IF($G77>MAX($G$3:$G76),G77,"") ->  | AV77: 10.75 | AW77: 77.26
A78: 16 | B78: 13.62 | C78: 77.26 | F78: 2.72 | G78: 19 | I78: =IF($G78>MAX($G$3:$G77),F78,"") ->  | J78: =IF($G78>MAX($G$3:$G77),G78,"") ->  | AV78: 13.62 | AW78: 77.26
A79: 17 | B79: 13.62 | C79: 84.81 | F79: 2.72 | G79: 28.5 | I79: =IF($G79>MAX($G$3:$G78),F79,"") ->  | J79: =IF($G79>MAX($G$3:$G78),G79,"") ->  | AV79: 13.62 | AW79: 84.81
A80: 18 | B80: 15.27 | C80: 84.81 | F80: 2.8 | G80: 20.72 | I80: =IF($G80>MAX($G$3:$G79),F80,"") ->  | J80: =IF($G80>MAX($G$3:$G79),G80,"") ->  | AV80: 15.27 | AW80: 84.81
A81: 19 | B81: 15.27 | C81: 92.36 | F81: 2.8 | G81: 31.08 | I81: =IF($G81>MAX($G$3:$G80),F81,"") ->  | J81: =IF($G81>MAX($G$3:$G80),G81,"") ->  | AV81: 15.27 | AW81: 92.36
A82: 20 | F82: 2.82 | G82: 20 | I82: =IF($G82>MAX($G$3:$G81),F82,"") ->  | J82: =IF($G82>MAX($G$3:$G81),G82,"") -> 
A83: 21 | F83: 2.82 | G83: 30 | I83: =IF($G83>MAX($G$3:$G82),F83,"") ->  | J83: =IF($G83>MAX($G$3:$G82),G83,"") -> 
A84: 22 | F84: 3.1 | G84: 18 | I84: =IF($G84>MAX($G$3:$G83),F84,"") ->  | J84: =IF($G84>MAX($G$3:$G83),G84,"") -> 
A85: 23 | F85: 3.1 | G85: 28.5 | I85: =IF($G85>MAX($G$3:$G84),F85,"") ->  | J85: =IF($G85>MAX($G$3:$G84),G85,"") -> 
A86: 24 | F86: 3.2 | G86: 24 | I86: =IF($G86>MAX($G$3:$G85),F86,"") ->  | J86: =IF($G86>MAX($G$3:$G85),G86,"") -> 
A87: 25 | F87: 3.2 | G87: 36 | I87: =IF($G87>MAX($G$3:$G86),F87,"") -> 3.2 | J87: =IF($G87>MAX($G$3:$G86),G87,"") -> 36
A88: 26 | F88: 3.62 | G88: 27 | I88: =IF($G88>MAX($G$3:$G87),F88,"") ->  | J88: =IF($G88>MAX($G$3:$G87),G88,"") -> 
A89: 27 | F89: 3.62 | G89: 28.8 | I89: =IF($G89>MAX($G$3:$G88),F89,"") ->  | J89: =IF($G89>MAX($G$3:$G88),G89,"") -> 
A90: 28 | F90: 3.7 | G90: 23 | I90: =IF($G90>MAX($G$3:$G89),F90,"") ->  | J90: =IF($G90>MAX($G$3:$G89),G90,"") -> 
A91: 0 | F91: 3.7 | G91: 34.5 | I91: =IF($G91>MAX($G$3:$G90),F91,"") ->  | J91: =IF($G91>MAX($G$3:$G90),G91,"") -> 
A92: 30 | F92: 3.93 | G92: 31.2 | I92: =IF($G92>MAX($G$3:$G91),F92,"") ->  | J92: =IF($G92>MAX($G$3:$G91),G92,"") -> 
A93: 1 | B93: 0 | C93: 9 | F93: 3.93 | G93: 41.6 | I93: =IF($G93>MAX($G$3:$G92),F93,"") -> 3.93 | J93: =IF($G93>MAX($G$3:$G92),G93,"") -> 41.6 | AV93: 0 | AW93: 9
A94: 2 | B94: 1.35 | C94: 9 | F94: 4.08 | G94: 34.2 | I94: =IF($G94>MAX($G$3:$G93),F94,"") ->  | J94: =IF($G94>MAX($G$3:$G93),G94,"") ->  | AV94: 1.35 | AW94: 9
A95: 3 | B95: 1.35 | C95: 15 | F95: 4.08 | G95: 45.6 | I95: =IF($G95>MAX($G$3:$G94),F95,"") -> 4.08 | J95: =IF($G95>MAX($G$3:$G94),G95,"") -> 45.6 | AV95: 1.35 | AW95: 15
A96: 4 | B96: 1.36 | C96: 15 | F96: 4.08 | G96: 27 | I96: =IF($G96>MAX($G$3:$G95),F96,"") ->  | J96: =IF($G96>MAX($G$3:$G95),G96,"") ->  | AV96: 1.36 | AW96: 15
A97: 5 | B97: 1.36 | C97: 18 | F97: 4.08 | G97: 36 | I97: =IF($G97>MAX($G$3:$G96),F97,"") ->  | J97: =IF($G97>MAX($G$3:$G96),G97,"") ->  | AV97: 1.36 | AW97: 18
A98: 6 | B98: 2.7 | C98: 18 | F98: 4.08 | G98: 27 | I98: =IF($G98>MAX($G$3:$G97),F98,"") ->  | J98: =IF($G98>MAX($G$3:$G97),G98,"") ->  | AV98: 2.7 | AW98: 18
A99: 7 | B99: 2.7 | C99: 23 | F99: 4.08 | G99: 36 | I99: =IF($G99>MAX($G$3:$G98),F99,"") ->  | J99: =IF($G99>MAX($G$3:$G98),G99,"") ->  | AV99: 2.7 | AW99: 23
A100: 8 | B100: 2.72 | C100: 23 | F100: 4.08 | G100: 22.74 | I100: =IF($G100>MAX($G$3:$G99),F100,"") ->  | J100: =IF($G100>MAX($G$3:$G99),G100,"") ->  | AV100: 2.72 | AW100: 23
A101: 9 | B101: 2.72 | C101: 27 | F101: 4.08 | G101: 30.24 | I101: =IF($G101>MAX($G$3:$G100),F101,"") ->  | J101: =IF($G101>MAX($G$3:$G100),G101,"") ->  | AV101: 2.72 | AW101: 27
A102: 10 | B102: 4.08 | C102: 27 | F102: 4.08 | G102: 24 | I102: =IF($G102>MAX($G$3:$G101),F102,"") ->  | J102: =IF($G102>MAX($G$3:$G101),G102,"") ->  | AV102: 4.08 | AW102: 27
A103: 11 | B103: 4.08 | C103: 36 | F103: 4.08 | G103: 32 | I103: =IF($G103>MAX($G$3:$G102),F103,"") ->  | J103: =IF($G103>MAX($G$3:$G102),G103,"") ->  | AV103: 4.08 | AW103: 36
A104: 12 | B104: 5.48 | C104: 36 | F104: 4.08 | G104: 28.5 | I104: =IF($G104>MAX($G$3:$G103),F104,"") ->  | J104: =IF($G104>MAX($G$3:$G103),G104,"") ->  | AV104: 5.48 | AW104: 36
A105: 13 | B105: 5.48 | C105: 45 | F105: 4.08 | G105: 38 | I105: =IF($G105>MAX($G$3:$G104),F105,"") ->  | J105: =IF($G105>MAX($G$3:$G104),G105,"") ->  | AV105: 5.48 | AW105: 45
A106: 14 | B106: 9.12 | C106: 45 | F106: 4.2 | G106: 31.08 | I106: =IF($G106>MAX($G$3:$G105),F106,"") ->  | J106: =IF($G106>MAX($G$3:$G105),G106,"") ->  | AV106: 9.12 | AW106: 45
A107: 15 | B107: 9.12 | C107: 50 | F107: 4.2 | G107: 41.44 | I107: =IF($G107>MAX($G$3:$G106),F107,"") ->  | J107: =IF($G107>MAX($G$3:$G106),G107,"") ->  | AV107: 9.12 | AW107: 50
A108: 16 | B108: 11.67 | C108: 50 | F108: 4.23 | G108: 30 | I108: =IF($G108>MAX($G$3:$G107),F108,"") ->  | J108: =IF($G108>MAX($G$3:$G107),G108,"") ->  | AV108: 11.67 | AW108: 50
A109: 17 | B109: 11.67 | C109: 55 | F109: 4.23 | G109: 40 | I109: =IF($G109>MAX($G$3:$G108),F109,"") ->  | J109: =IF($G109>MAX($G$3:$G108),G109,"") ->  | AV109: 11.67 | AW109: 55
A110: 18 | B110: 14.27 | C110: 55 | F110: 4.5 | G110: 23 | I110: =IF($G110>MAX($G$3:$G109),F110,"") ->  | J110: =IF($G110>MAX($G$3:$G109),G110,"") ->  | AV110: 14.27 | AW110: 55
A111: 19 | B111: 14.27 | C111: 63 | F111: 4.5 | G111: 28 | I111: =IF($G111>MAX($G$3:$G110),F111,"") ->  | J111: =IF($G111>MAX($G$3:$G110),G111,"") ->  | AV111: 14.27 | AW111: 63
A112: 20 | B112: 15.67 | C112: 63 | F112: 4.65 | G112: 28.5 | I112: =IF($G112>MAX($G$3:$G111),F112,"") ->  | J112: =IF($G112>MAX($G$3:$G111),G112,"") ->  | AV112: 15.67 | AW112: 63
A113: 21 | B113: 15.67 | C113: 72 | F113: 4.65 | G113: 38 | I113: =IF($G113>MAX($G$3:$G112),F113,"") ->  | J113: =IF($G113>MAX($G$3:$G112),G113,"") ->  | AV113: 15.67 | AW113: 72
A114: 22 | B114: 19.31 | C114: 72 | F114: 4.8 | G114: 36 | I114: =IF($G114>MAX($G$3:$G113),F114,"") ->  | J114: =IF($G114>MAX($G$3:$G113),G114,"") ->  | AV114: 19.31 | AW114: 72
A115: 23 | B115: 19.31 | C115: 77 | F115: 4.8 | G115: 48 | I115: =IF($G115>MAX($G$3:$G114),F115,"") -> 4.8 | J115: =IF($G115>MAX($G$3:$G114),G115,"") -> 48 | AV115: 19.31 | AW115: 77
A116: 24 | B116: 19.37 | C116: 77 | F116: 4.96 | G116: 28.8 | I116: =IF($G116>MAX($G$3:$G115),F116,"") ->  | J116: =IF($G116>MAX($G$3:$G115),G116,"") ->  | AV116: 19.37 | AW116: 77
A117: 25 | B117: 19.37 | C117: 80 | F117: 4.96 | G117: 34 | I117: =IF($G117>MAX($G$3:$G116),F117,"") ->  | J117: =IF($G117>MAX($G$3:$G116),G117,"") ->  | AV117: 19.37 | AW117: 80
A118: 26 | B118: 20.67 | C118: 80 | F118: 5.24 | G118: 41.6 | I118: =IF($G118>MAX($G$3:$G117),F118,"") ->  | J118: =IF($G118>MAX($G$3:$G117),G118,"") ->  | AV118: 20.67 | AW118: 80
A119: 27 | B119: 20.67 | C119: 86 | F119: 5.24 | G119: 52 | I119: =IF($G119>MAX($G$3:$G118),F119,"") -> 5.24 | J119: =IF($G119>MAX($G$3:$G118),G119,"") -> 52 | AV119: 20.67 | AW119: 86
A120: 28 | B120: 20.72 | C120: 86 | F120: 5.43 | G120: 34 | I120: =IF($G120>MAX($G$3:$G119),F120,"") ->  | J120: =IF($G120>MAX($G$3:$G119),G120,"") ->  | AV120: 20.72 | AW120: 86
A121: 0 | B121: 20.72 | C121: 88 | F121: 5.43 | G121: 38.4 | I121: =IF($G121>MAX($G$3:$G120),F121,"") ->  | J121: =IF($G121>MAX($G$3:$G120),G121,"") ->  | AV121: 20.72 | AW121: 88
A122: 30 | B122: 22.07 | C122: 88 | F122: 5.44 | G122: 45.6 | I122: =IF($G122>MAX($G$3:$G121),F122,"") ->  | J122: =IF($G122>MAX($G$3:$G121),G122,"") ->  | AV122: 22.07 | AW122: 88
A123: 1 | B123: 0 | C123: 12 | F123: 5.44 | G123: 57 | I123: =IF($G123>MAX($G$3:$G122),F123,"") -> 5.44 | J123: =IF($G123>MAX($G$3:$G122),G123,"") -> 57 | AV123: 0 | AW123: 12
A124: 2 | B124: 1.6 | C124: 12 | F124: 5.44 | G124: 36 | I124: =IF($G124>MAX($G$3:$G123),F124,"") ->  | J124: =IF($G124>MAX($G$3:$G123),G124,"") ->  | AV124: 1.6 | AW124: 12
A125: 3 | B125: 1.6 | C125: 24 | F125: 5.44 | G125: 45 | I125: =IF($G125>MAX($G$3:$G124),F125,"") ->  | J125: =IF($G125>MAX($G$3:$G124),G125,"") ->  | AV125: 1.6 | AW125: 24
A126: 4 | B126: 3.2 | C126: 24 | F126: 5.44 | G126: 32 | I126: =IF($G126>MAX($G$3:$G125),F126,"") ->  | J126: =IF($G126>MAX($G$3:$G125),G126,"") ->  | AV126: 3.2 | AW126: 24
A127: 5 | B127: 3.2 | C127: 36 | F127: 5.44 | G127: 40 | I127: =IF($G127>MAX($G$3:$G126),F127,"") ->  | J127: =IF($G127>MAX($G$3:$G126),G127,"") ->  | AV127: 3.2 | AW127: 36
A128: 6 | B128: 4.8 | C128: 36 | F128: 5.44 | G128: 38 | I128: =IF($G128>MAX($G$3:$G127),F128,"") ->  | J128: =IF($G128>MAX($G$3:$G127),G128,"") ->  | AV128: 4.8 | AW128: 36
A129: 7 | B129: 4.8 | C129: 48 | F129: 5.44 | G129: 47.5 | I129: =IF($G129>MAX($G$3:$G128),F129,"") ->  | J129: =IF($G129>MAX($G$3:$G128),G129,"") ->  | AV129: 4.8 | AW129: 48
A130: 8 | B130: 6.4 | C130: 48 | F130: 5.48 | G130: 36 | I130: =IF($G130>MAX($G$3:$G129),F130,"") ->  | J130: =IF($G130>MAX($G$3:$G129),G130,"") ->  | AV130: 6.4 | AW130: 48
A131: 9 | B131: 6.4 | C131: 60 | F131: 5.48 | G131: 45 | I131: =IF($G131>MAX($G$3:$G130),F131,"") ->  | J131: =IF($G131>MAX($G$3:$G130),G131,"") ->  | AV131: 6.4 | AW131: 60
A132: 10 | B132: 8 | C132: 60 | F132: 5.6 | G132: 41.44 | I132: =IF($G132>MAX($G$3:$G131),F132,"") ->  | J132: =IF($G132>MAX($G$3:$G131),G132,"") ->  | AV132: 8 | AW132: 60
A133: 11 | B133: 8 | C133: 72 | F133: 5.6 | G133: 51.8 | I133: =IF($G133>MAX($G$3:$G132),F133,"") ->  | J133: =IF($G133>MAX($G$3:$G132),G133,"") ->  | AV133: 8 | AW133: 72
A134: 12 | B134: 10.8 | C134: 72 | F134: 5.64 | G134: 40 | I134: =IF($G134>MAX($G$3:$G133),F134,"") ->  | J134: =IF($G134>MAX($G$3:$G133),G134,"") ->  | AV134: 10.8 | AW134: 72
A135: 13 | B135: 10.8 | C135: 84 | F135: 5.64 | G135: 50 | I135: =IF($G135>MAX($G$3:$G134),F135,"") ->  | J135: =IF($G135>MAX($G$3:$G134),G135,"") ->  | AV135: 10.8 | AW135: 84
A136: 14 | B136: 12.4 | C136: 84 | F136: 5.64 | G136: 34.5 | I136: =IF($G136>MAX($G$3:$G135),F136,"") ->  | J136: =IF($G136>MAX($G$3:$G135),G136,"") ->  | AV136: 12.4 | AW136: 84
A137: 15 | B137: 12.4 | C137: 96 | F137: 5.64 | G137: 46 | I137: =IF($G137>MAX($G$3:$G136),F137,"") ->  | J137: =IF($G137>MAX($G$3:$G136),G137,"") ->  | AV137: 12.4 | AW137: 96
A138: 16 | F138: 5.8 | G138: 28 | I138: =IF($G138>MAX($G$3:$G137),F138,"") ->  | J138: =IF($G138>MAX($G$3:$G137),G138,"") -> 
A139: 17 | F139: 5.8 | G139: 30 | I139: =IF($G139>MAX($G$3:$G138),F139,"") ->  | J139: =IF($G139>MAX($G$3:$G138),G139,"") -> 
A140: 18 | F140: 6 | G140: 30 | I140: =IF($G140>MAX($G$3:$G139),F140,"") ->  | J140: =IF($G140>MAX($G$3:$G139),G140,"") -> 
A141: 19 | F141: 6 | G141: 35 | I141: =IF($G141>MAX($G$3:$G140),F141,"") ->  | J141: =IF($G141>MAX($G$3:$G140),G141,"") -> 
A142: 20 | F142: 6.2 | G142: 38 | I142: =IF($G142>MAX($G$3:$G141),F142,"") ->  | J142: =IF($G142>MAX($G$3:$G141),G142,"") -> 
A143: 21 | F143: 6.2 | G143: 47.5 | I143: =IF($G143>MAX($G$3:$G142),F143,"") ->  | J143: =IF($G143>MAX($G$3:$G142),G143,"") -> 
A144: 22 | F144: 6.4 | G144: 48 | I144: =IF($G144>MAX($G$3:$G143),F144,"") ->  | J144: =IF($G144>MAX($G$3:$G143),G144,"") -> 
A145: 23 | F145: 6.4 | G145: 60 | I145: =IF($G145>MAX($G$3:$G144),F145,"") -> 6.4 | J145: =IF($G145>MAX($G$3:$G144),G145,"") -> 60
A146: 24 | F146: 6.52 | G146: 30.24 | I146: =IF($G146>MAX($G$3:$G145),F146,"") ->  | J146: =IF($G146>MAX($G$3:$G145),G146,"") -> 
A147: 25 | F147: 6.52 | G147: 36.5 | I147: =IF($G147>MAX($G$3:$G146),F147,"") ->  | J147: =IF($G147>MAX($G$3:$G146),G147,"") -> 
A148: 26 | F148: 6.8 | G148: 45 | I148: =IF($G148>MAX($G$3:$G147),F148,"") ->  | J148: =IF($G148>MAX($G$3:$G147),G148,"") -> 
A149: 27 | F149: 6.8 | G149: 54 | I149: =IF($G149>MAX($G$3:$G148),F149,"") ->  | J149: =IF($G149>MAX($G$3:$G148),G149,"") -> 
A150: 28 | F150: 7 | G150: 51.8 | I150: =IF($G150>MAX($G$3:$G149),F150,"") ->  | J150: =IF($G150>MAX($G$3:$G149),G150,"") -> 
A151: 0 | F151: 7 | G151: 62.16 | I151: =IF($G151>MAX($G$3:$G150),F151,"") -> 7 | J151: =IF($G151>MAX($G$3:$G150),G151,"") -> 62.16
A152: 30 | F152: 7.05 | G152: 50 | I152: =IF($G152>MAX($G$3:$G151),F152,"") ->  | J152: =IF($G152>MAX($G$3:$G151),G152,"") -> 
A153: 1 | B153: 0 | C153: 9 | F153: 7.05 | G153: 60 | I153: =IF($G153>MAX($G$3:$G152),F153,"") ->  | J153: =IF($G153>MAX($G$3:$G152),G153,"") ->  | AV153: 0 | AW153: 9
A154: 2 | B154: 1.35 | C154: 9 | F154: 7.24 | G154: 38.4 | I154: =IF($G154>MAX($G$3:$G153),F154,"") ->  | J154: =IF($G154>MAX($G$3:$G153),G154,"") ->  | AV154: 1.35 | AW154: 9
A155: 3 | B155: 1.35 | C155: 15 | F155: 7.24 | G155: 48 | I155: =IF($G155>MAX($G$3:$G154),F155,"") ->  | J155: =IF($G155>MAX($G$3:$G154),G155,"") ->  | AV155: 1.35 | AW155: 15
A156: 4 | B156: 1.36 | C156: 15 | F156: 7.3 | G156: 35 | I156: =IF($G156>MAX($G$3:$G155),F156,"") ->  | J156: =IF($G156>MAX($G$3:$G155),G156,"") ->  | AV156: 1.36 | AW156: 15
A157: 5 | B157: 1.36 | C157: 18 | F157: 7.3 | G157: 37 | I157: =IF($G157>MAX($G$3:$G156),F157,"") ->  | J157: =IF($G157>MAX($G$3:$G156),G157,"") ->  | AV157: 1.36 | AW157: 18
A158: 6 | B158: 2.72 | C158: 18 | F158: 7.5 | G158: 37 | I158: =IF($G158>MAX($G$3:$G157),F158,"") ->  | J158: =IF($G158>MAX($G$3:$G157),G158,"") ->  | AV158: 2.72 | AW158: 18
A159: 7 | B159: 2.72 | C159: 27 | F159: 7.5 | G159: 42 | I159: =IF($G159>MAX($G$3:$G158),F159,"") ->  | J159: =IF($G159>MAX($G$3:$G158),G159,"") ->  | AV159: 2.72 | AW159: 27
A160: 8 | B160: 4.08 | C160: 27 | F160: 7.75 | G160: 47.5 | I160: =IF($G160>MAX($G$3:$G159),F160,"") ->  | J160: =IF($G160>MAX($G$3:$G159),G160,"") ->  | AV160: 4.08 | AW160: 27
A161: 9 | B161: 4.08 | C161: 36 | F161: 7.75 | G161: 57 | I161: =IF($G161>MAX($G$3:$G160),F161,"") ->  | J161: =IF($G161>MAX($G$3:$G160),G161,"") ->  | AV161: 4.08 | AW161: 36
A162: 10 | B162: 5.44 | C162: 36 | F162: 7.79 | G162: 36.5 | I162: =IF($G162>MAX($G$3:$G161),F162,"") ->  | J162: =IF($G162>MAX($G$3:$G161),G162,"") ->  | AV162: 5.44 | AW162: 36
A163: 11 | B163: 5.44 | C163: 45 | F163: 7.79 | G163: 37.5 | I163: =IF($G163>MAX($G$3:$G162),F163,"") ->  | J163: =IF($G163>MAX($G$3:$G162),G163,"") ->  | AV163: 5.44 | AW163: 45
A164: 12 | B164: 6.8 | C164: 45 | F164: 8 | G164: 60 | I164: =IF($G164>MAX($G$3:$G163),F164,"") ->  | J164: =IF($G164>MAX($G$3:$G163),G164,"") ->  | AV164: 6.8 | AW164: 45
A165: 13 | B165: 6.8 | C165: 54 | F165: 8 | G165: 72 | I165: =IF($G165>MAX($G$3:$G164),F165,"") -> 8 | J165: =IF($G165>MAX($G$3:$G164),G165,"") -> 72 | AV165: 6.8 | AW165: 54
A166: 14 | B166: 14.27 | C166: 54 | F166: 8.46 | G166: 60 | I166: =IF($G166>MAX($G$3:$G165),F166,"") ->  | J166: =IF($G166>MAX($G$3:$G165),G166,"") ->  | AV166: 14.27 | AW166: 54
A167: 15 | B167: 14.27 | C167: 63 | F167: 8.46 | G167: 70 | I167: =IF($G167>MAX($G$3:$G166),F167,"") ->  | J167: =IF($G167>MAX($G$3:$G166),G167,"") ->  | AV167: 14.27 | AW167: 63
A168: 16 | B168: 15.63 | C168: 63 | F168: 8.8 | G168: 42 | I168: =IF($G168>MAX($G$3:$G167),F168,"") ->  | J168: =IF($G168>MAX($G$3:$G167),G168,"") ->  | AV168: 15.63 | AW168: 63
A169: 17 | B169: 15.63 | C169: 72 | F169: 8.8 | G169: 44 | I169: =IF($G169>MAX($G$3:$G168),F169,"") ->  | J169: =IF($G169>MAX($G$3:$G168),G169,"") ->  | AV169: 15.63 | AW169: 72
A170: 18 | B170: 16.99 | C170: 72 | F170: 9 | G170: 44 | I170: =IF($G170>MAX($G$3:$G169),F170,"") ->  | J170: =IF($G170>MAX($G$3:$G169),G170,"") ->  | AV170: 16.99 | AW170: 72
A171: 19 | B171: 16.99 | C171: 80 | F171: 9 | G171: 49 | I171: =IF($G171>MAX($G$3:$G170),F171,"") ->  | J171: =IF($G171>MAX($G$3:$G170),G171,"") ->  | AV171: 16.99 | AW171: 80
A172: 20 | B172: 20.68 | C172: 80 | F172: 9.12 | G172: 45 | I172: =IF($G172>MAX($G$3:$G171),F172,"") ->  | J172: =IF($G172>MAX($G$3:$G171),G172,"") ->  | AV172: 20.68 | AW172: 80
A173: 21 | B173: 20.68 | C173: 86 | F173: 9.12 | G173: 50 | I173: =IF($G173>MAX($G$3:$G172),F173,"") ->  | J173: =IF($G173>MAX($G$3:$G172),G173,"") ->  | AV173: 20.68 | AW173: 86
A174: 22 | B174: 20.69 | C174: 86 | F174: 9.15 | G174: 37.5 | I174: =IF($G174>MAX($G$3:$G173),F174,"") ->  | J174: =IF($G174>MAX($G$3:$G173),G174,"") ->  | AV174: 20.69 | AW174: 86
A175: 23 | B175: 20.69 | C175: 88 | F175: 9.15 | G175: 44.5 | I175: =IF($G175>MAX($G$3:$G174),F175,"") ->  | J175: =IF($G175>MAX($G$3:$G174),G175,"") ->  | AV175: 20.69 | AW175: 88
A176: 24 | B176: 22.04 | C176: 88 | F176: 9.3 | G176: 62.16 | I176: =IF($G176>MAX($G$3:$G175),F176,"") ->  | J176: =IF($G176>MAX($G$3:$G175),G176,"") ->  | AV176: 22.04 | AW176: 88
A177: 25 | B177: 22.04 | C177: 95 | F177: 9.3 | G177: 69.71 | I177: =IF($G177>MAX($G$3:$G176),F177,"") ->  | J177: =IF($G177>MAX($G$3:$G176),G177,"") ->  | AV177: 22.04 | AW177: 95
A178: 26 | B178: 24.59 | C178: 95 | F178: 9.3 | G178: 57 | I178: =IF($G178>MAX($G$3:$G177),F178,"") ->  | J178: =IF($G178>MAX($G$3:$G177),G178,"") ->  | AV178: 24.59 | AW178: 95
A179: 27 | B179: 24.59 | C179: 100 | F179: 9.3 | G179: 66.5 | I179: =IF($G179>MAX($G$3:$G178),F179,"") ->  | J179: =IF($G179>MAX($G$3:$G178),G179,"") ->  | AV179: 24.59 | AW179: 100
A180: 28 | F180: 9.57 | G180: 52 | I180: =IF($G180>MAX($G$3:$G179),F180,"") ->  | J180: =IF($G180>MAX($G$3:$G179),G180,"") -> 
A181: 0 | F181: 9.57 | G181: 52.9 | I181: =IF($G181>MAX($G$3:$G180),F181,"") ->  | J181: =IF($G181>MAX($G$3:$G180),G181,"") -> 
A182: 30 | F182: 9.87 | G182: 70 | I182: =IF($G182>MAX($G$3:$G181),F182,"") ->  | J182: =IF($G182>MAX($G$3:$G181),G182,"") -> 
A183: 1 | B183: 0 | C183: 10 | F183: 9.87 | G183: 80 | I183: =IF($G183>MAX($G$3:$G182),F183,"") -> 9.87 | J183: =IF($G183>MAX($G$3:$G182),G183,"") -> 80 | AV183: 0 | AW183: 10
A184: 2 | B184: 1.41 | C184: 10 | F184: 9.94 | G184: 47.5 | I184: =IF($G184>MAX($G$3:$G183),F184,"") ->  | J184: =IF($G184>MAX($G$3:$G183),G184,"") ->  | AV184: 1.41 | AW184: 10
A185: 3 | B185: 1.41 | C185: 20 | F185: 9.94 | G185: 57 | I185: =IF($G185>MAX($G$3:$G184),F185,"") ->  | J185: =IF($G185>MAX($G$3:$G184),G185,"") ->  | AV185: 1.41 | AW185: 20
A186: 4 | B186: 2.82 | C186: 20 | F186: 10.3 | G186: 49 | I186: =IF($G186>MAX($G$3:$G185),F186,"") ->  | J186: =IF($G186>MAX($G$3:$G185),G186,"") ->  | AV186: 2.82 | AW186: 20
A187: 5 | B187: 2.82 | C187: 30 | F187: 10.3 | G187: 51 | I187: =IF($G187>MAX($G$3:$G186),F187,"") ->  | J187: =IF($G187>MAX($G$3:$G186),G187,"") ->  | AV187: 2.82 | AW187: 30
A188: 6 | B188: 4.23 | C188: 30 | F188: 10.5 | G188: 51 | I188: =IF($G188>MAX($G$3:$G187),F188,"") ->  | J188: =IF($G188>MAX($G$3:$G187),G188,"") ->  | AV188: 4.23 | AW188: 30
A189: 7 | B189: 4.23 | C189: 40 | F189: 10.5 | G189: 56 | I189: =IF($G189>MAX($G$3:$G188),F189,"") ->  | J189: =IF($G189>MAX($G$3:$G188),G189,"") ->  | AV189: 4.23 | AW189: 40
A190: 8 | B190: 5.64 | C190: 40 | F190: 10.75 | G190: 69.71 | I190: =IF($G190>MAX($G$3:$G189),F190,"") ->  | J190: =IF($G190>MAX($G$3:$G189),G190,"") ->  | AV190: 5.64 | AW190: 40
A191: 9 | B191: 5.64 | C191: 50 | F191: 10.75 | G191: 77.26 | I191: =IF($G191>MAX($G$3:$G190),F191,"") ->  | J191: =IF($G191>MAX($G$3:$G190),G191,"") ->  | AV191: 5.64 | AW191: 50
A192: 10 | B192: 7.05 | C192: 50 | F192: 10.8 | G192: 72 | I192: =IF($G192>MAX($G$3:$G191),F192,"") ->  | J192: =IF($G192>MAX($G$3:$G191),G192,"") ->  | AV192: 7.05 | AW192: 50
A193: 11 | B193: 7.05 | C193: 60 | F193: 10.8 | G193: 84 | I193: =IF($G193>MAX($G$3:$G192),F193,"") -> 10.8 | J193: =IF($G193>MAX($G$3:$G192),G193,"") -> 84 | AV193: 7.05 | AW193: 60
A194: 12 | B194: 8.46 | C194: 60 | F194: 10.84 | G194: 52.9 | I194: =IF($G194>MAX($G$3:$G193),F194,"") ->  | J194: =IF($G194>MAX($G$3:$G193),G194,"") ->  | AV194: 8.46 | AW194: 60
A195: 13 | B195: 8.46 | C195: 70 | F195: 10.84 | G195: 62.85 | I195: =IF($G195>MAX($G$3:$G194),F195,"") ->  | J195: =IF($G195>MAX($G$3:$G194),G195,"") ->  | AV195: 8.46 | AW195: 70
A196: 14 | B196: 9.87 | C196: 70 | F196: 10.85 | G196: 66.5 | I196: =IF($G196>MAX($G$3:$G195),F196,"") ->  | J196: =IF($G196>MAX($G$3:$G195),G196,"") ->  | AV196: 9.87 | AW196: 70
A197: 15 | B197: 9.87 | C197: 80 | F197: 10.85 | G197: 76 | I197: =IF($G197>MAX($G$3:$G196),F197,"") ->  | J197: =IF($G197>MAX($G$3:$G196),G197,"") ->  | AV197: 9.87 | AW197: 80
A198: 16 | B198: 14.87 | C198: 80 | F198: 10.88 | G198: 62.85 | I198: =IF($G198>MAX($G$3:$G197),F198,"") ->  | J198: =IF($G198>MAX($G$3:$G197),G198,"") ->  | AV198: 14.87 | AW198: 80
A199: 17 | B199: 14.87 | C199: 90 | F199: 10.88 | G199: 63.3 | I199: =IF($G199>MAX($G$3:$G198),F199,"") ->  | J199: =IF($G199>MAX($G$3:$G198),G199,"") ->  | AV199: 14.87 | AW199: 90
A200: 18 | B200: 16.28 | C200: 90 | F200: 11.2 | G200: 46 | I200: =IF($G200>MAX($G$3:$G199),F200,"") ->  | J200: =IF($G200>MAX($G$3:$G199),G200,"") ->  | AV200: 16.28 | AW200: 90
... 282 more rows
